{"text_format":"1","workbook":"xlsx","n_sheets":3,"sheets":["QUOTATION","BoQ 01 ( Financial )","BoQ 01 ( Technical )"],"not_rendered":{"charts":0,"images":5,"macros":1,"external_links":1,"defined_names":20,"comments":0,"pivot_tables":0},"unopened":[],"bounds":{"document_bytes":16777216,"sheet_cells":100000,"rows_first":2000,"rows_last":500,"rows_between":2000,"halvings":0,"cell_chars":16384,"cell_head_chars":4096},"cells_cut":0,"cells_raw":0,"read":"whole","date_system":"1900"}

{"sheet":"QUOTATION","index":0,"n_rows":29,"n_cols":8,"rows_kept":29,"cut":false,"hidden":false,"merged":[[25,2,25,3],[28,2,29,3],[28,7,29,7],[16,2,16,3],[17,2,17,3],[18,2,18,5],[22,2,22,3],[23,2,23,3],[24,2,24,3],[9,6,9,7],[1,1,1,7],[4,4,4,6],[5,4,5,6],[7,2,8,4],[7,7,8,7]]}
[null,"QUOTATION REQUEST | TEKLİF TALEBİ - IRVD FOR HUMANITARIAN SUPPORT "]
[null,"طلب عرض سعر"]
[]
[]
[null,null,"PR date | SAT tarihi:",null,"2024-08-15",null,null,"تاريخ طلب الشراء:"]
[null,null,"\nReference of the PR | SAT'nin referansı:",null,"PR/KS-relief 047-01/KS-RELIEF1.01-1.02/GZT/PRO-HE/15-8-2024/A",null,null,"الرقم المرجعي لطلب الشراء:"]
[]
[null,null,"Quotation valid* from ....../......./........... until ....../......./...........\nTeklif geçerli*  tarihinden ....../......./........... tarihine kadar ....../....../…….... ",null,null,null,null,"صلاحية عرض السعر* من ....../......./........... إلى ....../......./..........."]
[]
[null,null,"*Please note that quotation cannot be valid for less than 3 days or more than 30 days.  | Teklifin 3 günden az veya 30 günden fazla geçerli olamayacağını lütfen unutmayın.",null,null,null," ملاحظة : عرض السعر يكون غير صالح لمدة أقل من ثلاثة أيام أو أكثر من 30 يوم."]
[null,null,"Company | Şirket:",null,null,null,null,"الشركة/المؤسسة:"]
[null,null,"Representative | Temsilci:",null,null,null,null,"اسم الشخص المسؤول:"]
[null,null,"Tel:",null,null,null,null,"الهاتف:"]
[null,null,"Email | E-posta:",null,null,null,null,"البريد الالكتروني:"]
[null,null,"Address | Adres:",null,null,null,null,"العنوان:"]
[]
[null,null,"Items |\nالعناصر",null,"Unit | Birim\nالواحدة","Quantity | Miktar\nالكمية",{"$f":"\"Unit Price in \"&CurrnecyT&\" includes taxes and delivery\"&\" | Birim Fiyata vergiler ve teslimat dahildir\"&\"\n| السعر الإفرادي متضمناً الضريبة \"","v":"Unit Price in EURO includes taxes and delivery | Birim Fiyata vergiler ve teslimat dahildir\n| السعر الإفرادي متضمناً الضريبة "},{"$f":"\"Total Price in \"&CurrnecyT&\" includes taxes and delivery \"&\" | Toplam Fiyata vergiler ve teslimat dahildir\"&\n\"| السعر الإجمالي متضمناً الضريبة والتوصيل\"","v":"Total Price in EURO includes taxes and delivery  | Toplam Fiyata vergiler ve teslimat dahildir| السعر الإجمالي متضمناً الضريبة والتوصيل"}]
[null,1,{"$f":"'[1]PR FORM'!B16","v":"Medications - PHC (BoQ 01)"},null,{"$f":"'[1]PR FORM'!C16","v":"Lumpsum"},6]
[null,null,"Total | Toplam |  المجموع"]
[]
[null," Comments/Technical specifications | Yorumlar/Teknik özellikler | التعليقات/المواصفات التقنية"]
[]
[null,null,"Total price (in letter) | Toplam fiyat (mektupla)",null,null,null,null," السعر الكلي ( كتابةً) :"]
[null,null,"Available now | Şu an müsait:",null,null,null,null," كل العناصر متوفرة:"]
[null,null,"The requested quantity is entirely available | İstenen miktar tamamen mevcuttur",null,null,null,null," الكمية المطلوبة متوفرة :"]
[null,null,"Delivery date | Teslim tarihi",null,null,null,null," تاريخ التسليم:"]
[]
[]
[null,null,"\nSupplier's signature and stamp | Tedarikçinin imzası ve kaşesi: ",null,null,null,null,"ختم وتوقيع المورد : "]

{"sheet":"BoQ 01 ( Financial )","index":1,"n_rows":227,"n_cols":8,"rows_kept":227,"cut":false,"hidden":false,"merged":[[0,3,0,7]]}
["BoQ 01",null,"PR/KS-relief 047-01/KS-RELIEF1.01-1.02/GZT/PRO-HE/15-8-2024/A","Financial"]
["SN","Category\nKategori","Technical Specifications\nTeknik Özellikler","Unit\nBirim","Quantity\nMiktar ","Frequency | Tekrarlama","UNIT PRICE","TOTAL PRICE"]
[{"$f":"IF(ISBLANK(B3),\"\",SUBTOTAL(103,$B$3:B3))","v":1},"Medicines","AdenosineAmp3 MG/1ML","amp",150,6,null,{"$f":"Table145[[#This Row],[Quantity\nMiktar ]]*Table145[[#This Row],[UNIT PRICE]]","v":0}]
[{"$f":"IF(ISBLANK(B4),\"\",SUBTOTAL(103,$B$3:B4))","v":2},"Medicines","Amiodarone_150 MG / 3 ML_Amp","vial",150,6,null,{"$f":"Table145[[#This Row],[Quantity\nMiktar ]]*Table145[[#This Row],[UNIT PRICE]]","v":0}]
[{"$f":"IF(ISBLANK(B5),\"\",SUBTOTAL(103,$B$3:B5))","v":3},"Medicines","Budesonide 1mg/2ML  Nebuliser suspension ","amp",500,6,null,{"$f":"Table145[[#This Row],[Quantity\nMiktar ]]*Table145[[#This Row],[UNIT PRICE]]","v":0}]
[{"$f":"IF(ISBLANK(B6),\"\",SUBTOTAL(103,$B$3:B6))","v":4},"Medicines","chlopheneramine 45.5mg/2ml","amp",300,6,null,{"$f":"Table145[[#This Row],[Quantity\nMiktar ]]*Table145[[#This Row],[UNIT PRICE]]","v":0}]
[{"$f":"IF(ISBLANK(B7),\"\",SUBTOTAL(103,$B$3:B7))","v":5},"Medicines","Chlorpromazine_25 MG / 5 ML_Amp","vial",150,6,null,{"$f":"Table145[[#This Row],[Quantity\nMiktar ]]*Table145[[#This Row],[UNIT PRICE]]","v":0}]
[{"$f":"IF(ISBLANK(B8),\"\",SUBTOTAL(103,$B$3:B8))","v":6},"Medicines","CiprofloxacinBag200 mg / 100 ml","amp",800,6,null,{"$f":"Table145[[#This Row],[Quantity\nMiktar ]]*Table145[[#This Row],[UNIT PRICE]]","v":0}]
[{"$f":"IF(ISBLANK(B9),\"\",SUBTOTAL(103,$B$3:B9))","v":7},"Medicines","Dexamethasone_4 MG / 1 ML_Amp","amp",4500,6,null,{"$f":"Table145[[#This Row],[Quantity\nMiktar ]]*Table145[[#This Row],[UNIT PRICE]]","v":0}]
[{"$f":"IF(ISBLANK(B10),\"\",SUBTOTAL(103,$B$3:B10))","v":8},"Medicines","Diazepam_10 MG / 2 ML_Amp","amp",200,6,null,{"$f":"Table145[[#This Row],[Quantity\nMiktar ]]*Table145[[#This Row],[UNIT PRICE]]","v":0}]
[{"$f":"IF(ISBLANK(B11),\"\",SUBTOTAL(103,$B$3:B11))","v":9},"Medicines","Diclofenac Sodium_75 MG / 3 ML_Amp","amp",6500,6,null,{"$f":"Table145[[#This Row],[Quantity\nMiktar ]]*Table145[[#This Row],[UNIT PRICE]]","v":0}]
[{"$f":"IF(ISBLANK(B12),\"\",SUBTOTAL(103,$B$3:B12))","v":10},"Medicines","Hydrocortisone_100 MG_Vial","amp",2500,6,null,{"$f":"Table145[[#This Row],[Quantity\nMiktar ]]*Table145[[#This Row],[UNIT PRICE]]","v":0}]
[{"$f":"IF(ISBLANK(B13),\"\",SUBTOTAL(103,$B$3:B13))","v":11},"Medicines","Hyoscine - N - Butylbromide_20 MG / ML_Amp","amp",5200,6,null,{"$f":"Table145[[#This Row],[Quantity\nMiktar ]]*Table145[[#This Row],[UNIT PRICE]]","v":0}]
[{"$f":"IF(ISBLANK(B14),\"\",SUBTOTAL(103,$B$3:B14))","v":12},"Medicines","Isoflurane B.P_Inhalation Solution","flak",30,6,null,{"$f":"Table145[[#This Row],[Quantity\nMiktar ]]*Table145[[#This Row],[UNIT PRICE]]","v":0}]
[{"$f":"IF(ISBLANK(B15),\"\",SUBTOTAL(103,$B$3:B15))","v":13},"Medicines","Ketamine_50 MG / ML_Vial","vial",30,6,null,{"$f":"Table145[[#This Row],[Quantity\nMiktar ]]*Table145[[#This Row],[UNIT PRICE]]","v":0}]
[{"$f":"IF(ISBLANK(B16),\"\",SUBTOTAL(103,$B$3:B16))","v":14},"Medicines","levofloxacin 500mg for iv","flaq",150,6,null,{"$f":"Table145[[#This Row],[Quantity\nMiktar ]]*Table145[[#This Row],[UNIT PRICE]]","v":0}]
[{"$f":"IF(ISBLANK(B17),\"\",SUBTOTAL(103,$B$3:B17))","v":15},"Medicines","Metoprolol_5 MG / 5 ML_Amp","amp",100,6,null,{"$f":"Table145[[#This Row],[Quantity\nMiktar ]]*Table145[[#This Row],[UNIT PRICE]]","v":0}]
[{"$f":"IF(ISBLANK(B18),\"\",SUBTOTAL(103,$B$3:B18))","v":16},"Medicines","MetronidazoleVial500MG/ 100ML","vial",1150,6,null,{"$f":"Table145[[#This Row],[Quantity\nMiktar ]]*Table145[[#This Row],[UNIT PRICE]]","v":0}]
[{"$f":"IF(ISBLANK(B19),\"\",SUBTOTAL(103,$B$3:B19))","v":17},"Medicines","Morphine_10 MG / ML_Amp","flak",150,6,null,{"$f":"Table145[[#This Row],[Quantity\nMiktar ]]*Table145[[#This Row],[UNIT PRICE]]","v":0}]
[{"$f":"IF(ISBLANK(B20),\"\",SUBTOTAL(103,$B$3:B20))","v":18},"Medicines","Omeprazole_40 MG_Vial","amp",1500,6,null,{"$f":"Table145[[#This Row],[Quantity\nMiktar ]]*Table145[[#This Row],[UNIT PRICE]]","v":0}]
[{"$f":"IF(ISBLANK(B21),\"\",SUBTOTAL(103,$B$3:B21))","v":19},"Medicines","Ondansetron_8 MG / 2 ML_Amp","amp",7000,6,null,{"$f":"Table145[[#This Row],[Quantity\nMiktar ]]*Table145[[#This Row],[UNIT PRICE]]","v":0}]
[{"$f":"IF(ISBLANK(B22),\"\",SUBTOTAL(103,$B$3:B22))","v":20},"Medicines","Paracetamol_1000 MG / 100 ML_I.V solution","vial",4800,6,null,{"$f":"Table145[[#This Row],[Quantity\nMiktar ]]*Table145[[#This Row],[UNIT PRICE]]","v":0}]
[{"$f":"IF(ISBLANK(B23),\"\",SUBTOTAL(103,$B$3:B23))","v":21},"Medicines","Pethidine_100 MG / 2 ML_Amp","amp",100,6,null,{"$f":"Table145[[#This Row],[Quantity\nMiktar ]]*Table145[[#This Row],[UNIT PRICE]]","v":0}]
[{"$f":"IF(ISBLANK(B24),\"\",SUBTOTAL(103,$B$3:B24))","v":22},"Medicines","Propofol Amp20 MG/ ML","amp",500,6,null,{"$f":"Table145[[#This Row],[Quantity\nMiktar ]]*Table145[[#This Row],[UNIT PRICE]]","v":0}]
[{"$f":"IF(ISBLANK(B25),\"\",SUBTOTAL(103,$B$3:B25))","v":23},"Medicines","Salbutamol_2.5 MG / 2.5 ML_Nebulizer Solution","amp",1700,6,null,{"$f":"Table145[[#This Row],[Quantity\nMiktar ]]*Table145[[#This Row],[UNIT PRICE]]","v":0}]
[{"$f":"IF(ISBLANK(B26),\"\",SUBTOTAL(103,$B$3:B26))","v":24},"Medicines","Sodium Chloride_0.9 %_I.V solution","amp",3600,6,null,{"$f":"Table145[[#This Row],[Quantity\nMiktar ]]*Table145[[#This Row],[UNIT PRICE]]","v":0}]
[{"$f":"IF(ISBLANK(B27),\"\",SUBTOTAL(103,$B$3:B27))","v":25},"Medicines","Betahistine 16mg","tab",1200,6,null,{"$f":"Table145[[#This Row],[Quantity\nMiktar ]]*Table145[[#This Row],[UNIT PRICE]]","v":0}]
[{"$f":"IF(ISBLANK(B28),\"\",SUBTOTAL(103,$B$3:B28))","v":26},"Medicines","Calcium + VIT D3 600 MG+400 IU","tab",6000,6,null,{"$f":"Table145[[#This Row],[Quantity\nMiktar ]]*Table145[[#This Row],[UNIT PRICE]]","v":0}]
[{"$f":"IF(ISBLANK(B29),\"\",SUBTOTAL(103,$B$3:B29))","v":27},"Medicines","Captopril 25mg","tab",2000,6,null,{"$f":"Table145[[#This Row],[Quantity\nMiktar ]]*Table145[[#This Row],[UNIT PRICE]]","v":0}]
[{"$f":"IF(ISBLANK(B30),\"\",SUBTOTAL(103,$B$3:B30))","v":28},"Medicines","Cefixime 400mg","tab",3700,6,null,{"$f":"Table145[[#This Row],[Quantity\nMiktar ]]*Table145[[#This Row],[UNIT PRICE]]","v":0}]
[{"$f":"IF(ISBLANK(B31),\"\",SUBTOTAL(103,$B$3:B31))","v":29},"Medicines","Ciprofloxacin 500mg","tab",6150,6,null,{"$f":"Table145[[#This Row],[Quantity\nMiktar ]]*Table145[[#This Row],[UNIT PRICE]]","v":0}]
[{"$f":"IF(ISBLANK(B32),\"\",SUBTOTAL(103,$B$3:B32))","v":30},"Medicines","Clopidogrel 75mg","tab",2000,6,null,{"$f":"Table145[[#This Row],[Quantity\nMiktar ]]*Table145[[#This Row],[UNIT PRICE]]","v":0}]
[{"$f":"IF(ISBLANK(B33),\"\",SUBTOTAL(103,$B$3:B33))","v":31},"Medicines","Diclofenac Sodium 50mg","tab",6000,6,null,{"$f":"Table145[[#This Row],[Quantity\nMiktar ]]*Table145[[#This Row],[UNIT PRICE]]","v":0}]
[{"$f":"IF(ISBLANK(B34),\"\",SUBTOTAL(103,$B$3:B34))","v":32},"Medicines","Hyoscine - N - Butylbromide+ paracetamol 500/10mg","tab",8000,6,null,{"$f":"Table145[[#This Row],[Quantity\nMiktar ]]*Table145[[#This Row],[UNIT PRICE]]","v":0}]
[{"$f":"IF(ISBLANK(B35),\"\",SUBTOTAL(103,$B$3:B35))","v":33},"Medicines","Lansoprazole 30mg","tab",4000,6,null,{"$f":"Table145[[#This Row],[Quantity\nMiktar ]]*Table145[[#This Row],[UNIT PRICE]]","v":0}]
[{"$f":"IF(ISBLANK(B36),\"\",SUBTOTAL(103,$B$3:B36))","v":34},"Medicines","Levofloxacin 500mg","tab",2000,6,null,{"$f":"Table145[[#This Row],[Quantity\nMiktar ]]*Table145[[#This Row],[UNIT PRICE]]","v":0}]
[{"$f":"IF(ISBLANK(B37),\"\",SUBTOTAL(103,$B$3:B37))","v":35},"Medicines"," des-Loratadine 5mg","tab",1000,6,null,{"$f":"Table145[[#This Row],[Quantity\nMiktar ]]*Table145[[#This Row],[UNIT PRICE]]","v":0}]
[{"$f":"IF(ISBLANK(B38),\"\",SUBTOTAL(103,$B$3:B38))","v":36},"Medicines","Losartan + Hydrochlorothiazide 50/12.5mg","tab",1800,6,null,{"$f":"Table145[[#This Row],[Quantity\nMiktar ]]*Table145[[#This Row],[UNIT PRICE]]","v":0}]
[{"$f":"IF(ISBLANK(B39),\"\",SUBTOTAL(103,$B$3:B39))","v":37},"Medicines","Metoprolol 50mg","tab",1000,6,null,{"$f":"Table145[[#This Row],[Quantity\nMiktar ]]*Table145[[#This Row],[UNIT PRICE]]","v":0}]
[{"$f":"IF(ISBLANK(B40),\"\",SUBTOTAL(103,$B$3:B40))","v":38},"Medicines","Ondansetron 8mg","tab",500,6,null,{"$f":"Table145[[#This Row],[Quantity\nMiktar ]]*Table145[[#This Row],[UNIT PRICE]]","v":0}]
[{"$f":"IF(ISBLANK(B41),\"\",SUBTOTAL(103,$B$3:B41))","v":39},"Medicines","Paracetamol 500mg","tab",32000,6,null,{"$f":"Table145[[#This Row],[Quantity\nMiktar ]]*Table145[[#This Row],[UNIT PRICE]]","v":0}]
[{"$f":"IF(ISBLANK(B42),\"\",SUBTOTAL(103,$B$3:B42))","v":40},"Medicines","Sodium Chloride 0.9% 1 liter","bag",500,6,null,{"$f":"Table145[[#This Row],[Quantity\nMiktar ]]*Table145[[#This Row],[UNIT PRICE]]","v":0}]
[{"$f":"IF(ISBLANK(B43),\"\",SUBTOTAL(103,$B$3:B43))","v":41},"Medicines","Dextrose 5%,solution0.5 liter","bag",350,6,null,{"$f":"Table145[[#This Row],[Quantity\nMiktar ]]*Table145[[#This Row],[UNIT PRICE]]","v":0}]
[{"$f":"IF(ISBLANK(B44),\"\",SUBTOTAL(103,$B$3:B44))","v":42},"Medicines","Silvadiazin 1%","tube",150,6,null,{"$f":"Table145[[#This Row],[Quantity\nMiktar ]]*Table145[[#This Row],[UNIT PRICE]]","v":0}]
[{"$f":"IF(ISBLANK(B45),\"\",SUBTOTAL(103,$B$3:B45))","v":43},"Medicines","Oxytocin","amp",400,6,null,{"$f":"Table145[[#This Row],[Quantity\nMiktar ]]*Table145[[#This Row],[UNIT PRICE]]","v":0}]
[{"$f":"IF(ISBLANK(B46),\"\",SUBTOTAL(103,$B$3:B46))","v":44},"Medicines","Ephedrine hydrochloride 30 mg/ml","amp",80,6,null,{"$f":"Table145[[#This Row],[Quantity\nMiktar ]]*Table145[[#This Row],[UNIT PRICE]]","v":0}]
[{"$f":"IF(ISBLANK(B47),\"\",SUBTOTAL(103,$B$3:B47))","v":45},"Medicines","Marcaine spinal 0.5% 5mg/ml","amp",80,6,null,{"$f":"Table145[[#This Row],[Quantity\nMiktar ]]*Table145[[#This Row],[UNIT PRICE]]","v":0}]
[{"$f":"IF(ISBLANK(B48),\"\",SUBTOTAL(103,$B$3:B48))","v":46},"Medicines","Misoprostol 200 mg","tab",600,6,null,{"$f":"Table145[[#This Row],[Quantity\nMiktar ]]*Table145[[#This Row],[UNIT PRICE]]","v":0}]
[{"$f":"IF(ISBLANK(B49),\"\",SUBTOTAL(103,$B$3:B49))","v":47},"Medicines","Vitamin K / phytomenadione 2 mg ","amp",150,6,null,{"$f":"Table145[[#This Row],[Quantity\nMiktar ]]*Table145[[#This Row],[UNIT PRICE]]","v":0}]
[{"$f":"IF(ISBLANK(B50),\"\",SUBTOTAL(103,$B$3:B50))","v":48},"Medicines","Ceftriaxone sodium 1000mg , I.V,I.M injection","flak",1000,6,null,{"$f":"Table145[[#This Row],[Quantity\nMiktar ]]*Table145[[#This Row],[UNIT PRICE]]","v":0}]
[{"$f":"IF(ISBLANK(B51),\"\",SUBTOTAL(103,$B$3:B51))","v":49},"Medicines","Ceftriaxone sodium 500mg , I.V,I.M injection","flak",800,6,null,{"$f":"Table145[[#This Row],[Quantity\nMiktar ]]*Table145[[#This Row],[UNIT PRICE]]","v":0}]
[{"$f":"IF(ISBLANK(B52),\"\",SUBTOTAL(103,$B$3:B52))","v":50},"Medicines","Cefotaxime sodium 1000g ","flak",500,6,null,{"$f":"Table145[[#This Row],[Quantity\nMiktar ]]*Table145[[#This Row],[UNIT PRICE]]","v":0}]
[{"$f":"IF(ISBLANK(B53),\"\",SUBTOTAL(103,$B$3:B53))","v":51},"Medicines","epinephrine 1 mg","amp",300,6,null,{"$f":"Table145[[#This Row],[Quantity\nMiktar ]]*Table145[[#This Row],[UNIT PRICE]]","v":0}]
[{"$f":"IF(ISBLANK(B54),\"\",SUBTOTAL(103,$B$3:B54))","v":52},"Medicines","Lidocain 2 %","vial",70,6,null,{"$f":"Table145[[#This Row],[Quantity\nMiktar ]]*Table145[[#This Row],[UNIT PRICE]]","v":0}]
[{"$f":"IF(ISBLANK(B55),\"\",SUBTOTAL(103,$B$3:B55))","v":53},"Medicines","Ondanestron 8 mg/4ml ,I.V,I.M","amp",300,6,null,{"$f":"Table145[[#This Row],[Quantity\nMiktar ]]*Table145[[#This Row],[UNIT PRICE]]","v":0}]
[{"$f":"IF(ISBLANK(B56),\"\",SUBTOTAL(103,$B$3:B56))","v":54},"Medicines","Paracetamol 120","syrup",400,6,null,{"$f":"Table145[[#This Row],[Quantity\nMiktar ]]*Table145[[#This Row],[UNIT PRICE]]","v":0}]
[{"$f":"IF(ISBLANK(B57),\"\",SUBTOTAL(103,$B$3:B57))","v":55},"Medicines","Amoxicillin 825 mg / Clavulanic Acid, 175 mg ","tab",2140,6,null,{"$f":"Table145[[#This Row],[Quantity\nMiktar ]]*Table145[[#This Row],[UNIT PRICE]]","v":0}]
[{"$f":"IF(ISBLANK(B58),\"\",SUBTOTAL(103,$B$3:B58))","v":56},"Medicines","Diclofenac sodium 25 mg","Supp",700,6,null,{"$f":"Table145[[#This Row],[Quantity\nMiktar ]]*Table145[[#This Row],[UNIT PRICE]]","v":0}]
[{"$f":"IF(ISBLANK(B59),\"\",SUBTOTAL(103,$B$3:B59))","v":57},"Medicines","Ibuprofen 400","tab",7000,6,null,{"$f":"Table145[[#This Row],[Quantity\nMiktar ]]*Table145[[#This Row],[UNIT PRICE]]","v":0}]
[{"$f":"IF(ISBLANK(B60),\"\",SUBTOTAL(103,$B$3:B60))","v":58},"Medicines","Hexamidine ","bottle",100,6,null,{"$f":"Table145[[#This Row],[Quantity\nMiktar ]]*Table145[[#This Row],[UNIT PRICE]]","v":0}]
[{"$f":"IF(ISBLANK(B61),\"\",SUBTOTAL(103,$B$3:B61))","v":59},"Medicines","vitamin D","drop",70,6,null,{"$f":"Table145[[#This Row],[Quantity\nMiktar ]]*Table145[[#This Row],[UNIT PRICE]]","v":0}]
[{"$f":"IF(ISBLANK(B62),\"\",SUBTOTAL(103,$B$3:B62))","v":60},"Medicines","Mefenamic acid 500 mg","tab",1500,6,null,{"$f":"Table145[[#This Row],[Quantity\nMiktar ]]*Table145[[#This Row],[UNIT PRICE]]","v":0}]
[{"$f":"IF(ISBLANK(B63),\"\",SUBTOTAL(103,$B$3:B63))","v":61},"Medicines","Amoxicillin 260 mg / Clavulanic Acid, 62mg / ","syrup",150,6,null,{"$f":"Table145[[#This Row],[Quantity\nMiktar ]]*Table145[[#This Row],[UNIT PRICE]]","v":0}]
[{"$f":"IF(ISBLANK(B64),\"\",SUBTOTAL(103,$B$3:B64))","v":62},"Medicines","Amoxicillin 250 mg ","syrup",370,6,null,{"$f":"Table145[[#This Row],[Quantity\nMiktar ]]*Table145[[#This Row],[UNIT PRICE]]","v":0}]
[{"$f":"IF(ISBLANK(B65),\"\",SUBTOTAL(103,$B$3:B65))","v":63},"Medicines","Zinc","syrup",100,6,null,{"$f":"Table145[[#This Row],[Quantity\nMiktar ]]*Table145[[#This Row],[UNIT PRICE]]","v":0}]
[{"$f":"IF(ISBLANK(B66),\"\",SUBTOTAL(103,$B$3:B66))","v":64},"Medicines","Ibuprofen 100","syrup",400,6,null,{"$f":"Table145[[#This Row],[Quantity\nMiktar ]]*Table145[[#This Row],[UNIT PRICE]]","v":0}]
[{"$f":"IF(ISBLANK(B67),\"\",SUBTOTAL(103,$B$3:B67))","v":65},"Medicines","Metronidazole 500","tab",5500,6,null,{"$f":"Table145[[#This Row],[Quantity\nMiktar ]]*Table145[[#This Row],[UNIT PRICE]]","v":0}]
[{"$f":"IF(ISBLANK(B68),\"\",SUBTOTAL(103,$B$3:B68))","v":66},"Medicines","levonorgestrel ethinylestradiol 30","tab",4300,6,null,{"$f":"Table145[[#This Row],[Quantity\nMiktar ]]*Table145[[#This Row],[UNIT PRICE]]","v":0}]
[{"$f":"IF(ISBLANK(B69),\"\",SUBTOTAL(103,$B$3:B69))","v":67},"Medicines","glycerin","Supp",500,6,null,{"$f":"Table145[[#This Row],[Quantity\nMiktar ]]*Table145[[#This Row],[UNIT PRICE]]","v":0}]
[{"$f":"IF(ISBLANK(B70),\"\",SUBTOTAL(103,$B$3:B70))","v":68},"Medicines","Amoxicillin 500","tab",5500,6,null,{"$f":"Table145[[#This Row],[Quantity\nMiktar ]]*Table145[[#This Row],[UNIT PRICE]]","v":0}]
[{"$f":"IF(ISBLANK(B71),\"\",SUBTOTAL(103,$B$3:B71))","v":69},"Medicines","Cefixime 200","tab",2500,6,null,{"$f":"Table145[[#This Row],[Quantity\nMiktar ]]*Table145[[#This Row],[UNIT PRICE]]","v":0}]
[{"$f":"IF(ISBLANK(B72),\"\",SUBTOTAL(103,$B$3:B72))","v":70},"Medicines","C  Serum","bottle",200,6,null,{"$f":"Table145[[#This Row],[Quantity\nMiktar ]]*Table145[[#This Row],[UNIT PRICE]]","v":0}]
[{"$f":"IF(ISBLANK(B73),\"\",SUBTOTAL(103,$B$3:B73))","v":71},"Medicines","Folic Acid","tab",5500,6,null,{"$f":"Table145[[#This Row],[Quantity\nMiktar ]]*Table145[[#This Row],[UNIT PRICE]]","v":0}]
[{"$f":"IF(ISBLANK(B74),\"\",SUBTOTAL(103,$B$3:B74))","v":72},"Medicines","Metronidazole + Miconazole Nitrate","Supp",3000,6,null,{"$f":"Table145[[#This Row],[Quantity\nMiktar ]]*Table145[[#This Row],[UNIT PRICE]]","v":0}]
[{"$f":"IF(ISBLANK(B75),\"\",SUBTOTAL(103,$B$3:B75))","v":73},"Medicines","Omprazole 20mg","tab",1500,6,null,{"$f":"Table145[[#This Row],[Quantity\nMiktar ]]*Table145[[#This Row],[UNIT PRICE]]","v":0}]
[{"$f":"IF(ISBLANK(B76),\"\",SUBTOTAL(103,$B$3:B76))","v":74},"Medicines","Clotrimazole 1 % cream","tube",200,6,null,{"$f":"Table145[[#This Row],[Quantity\nMiktar ]]*Table145[[#This Row],[UNIT PRICE]]","v":0}]
[{"$f":"IF(ISBLANK(B77),\"\",SUBTOTAL(103,$B$3:B77))","v":75},"Medicines","Recsil ","Supp",2000,6,null,{"$f":"Table145[[#This Row],[Quantity\nMiktar ]]*Table145[[#This Row],[UNIT PRICE]]","v":0}]
[{"$f":"IF(ISBLANK(B78),\"\",SUBTOTAL(103,$B$3:B78))","v":76},"Medicines","Azitromycin","syrup",215,6,null,{"$f":"Table145[[#This Row],[Quantity\nMiktar ]]*Table145[[#This Row],[UNIT PRICE]]","v":0}]
[{"$f":"IF(ISBLANK(B79),\"\",SUBTOTAL(103,$B$3:B79))","v":77},"Medicines","Acetylsalicylic Acid (Aspirin), 75 mg, Gastro-Resistant Tab.","Tablet",500,6,null,{"$f":"Table145[[#This Row],[Quantity\nMiktar ]]*Table145[[#This Row],[UNIT PRICE]]","v":0}]
[{"$f":"IF(ISBLANK(B80),\"\",SUBTOTAL(103,$B$3:B80))","v":78},"Medicines","Amlodipine 5mg","Tablet",500,6,null,{"$f":"Table145[[#This Row],[Quantity\nMiktar ]]*Table145[[#This Row],[UNIT PRICE]]","v":0}]
[{"$f":"IF(ISBLANK(B81),\"\",SUBTOTAL(103,$B$3:B81))","v":79},"Medicines","Amoxicillin 400mg / Clavulanic Acid, 57 mg / 5ml, Powder Oral Susp 70ml","Oral Suspension",20,6,null,{"$f":"Table145[[#This Row],[Quantity\nMiktar ]]*Table145[[#This Row],[UNIT PRICE]]","v":0}]
[{"$f":"IF(ISBLANK(B82),\"\",SUBTOTAL(103,$B$3:B82))","v":80},"Medicines","Atorvastatin 40mg","Tablet",200,6,null,{"$f":"Table145[[#This Row],[Quantity\nMiktar ]]*Table145[[#This Row],[UNIT PRICE]]","v":0}]
[{"$f":"IF(ISBLANK(B83),\"\",SUBTOTAL(103,$B$3:B83))","v":81},"Medicines","Azithromycin 500mg","Tablet",60,6,null,{"$f":"Table145[[#This Row],[Quantity\nMiktar ]]*Table145[[#This Row],[UNIT PRICE]]","v":0}]
[{"$f":"IF(ISBLANK(B84),\"\",SUBTOTAL(103,$B$3:B84))","v":82},"Medicines","Benzyl Benzoate, 25%, Lotion, 100 ml","Bottle",10,6,null,{"$f":"Table145[[#This Row],[Quantity\nMiktar ]]*Table145[[#This Row],[UNIT PRICE]]","v":0}]
[{"$f":"IF(ISBLANK(B85),\"\",SUBTOTAL(103,$B$3:B85))","v":83},"Medicines","Bisoprolol Fumarate, 10 mg, Break.Tab.","Tablet",140,6,null,{"$f":"Table145[[#This Row],[Quantity\nMiktar ]]*Table145[[#This Row],[UNIT PRICE]]","v":0}]
[{"$f":"IF(ISBLANK(B86),\"\",SUBTOTAL(103,$B$3:B86))","v":84},"Medicines","Cefixime, 100mg/5ml, Powder For Oral Susp., 60 Ml, Bot.","Bottle",15,6,null,{"$f":"Table145[[#This Row],[Quantity\nMiktar ]]*Table145[[#This Row],[UNIT PRICE]]","v":0}]
[{"$f":"IF(ISBLANK(B87),\"\",SUBTOTAL(103,$B$3:B87))","v":85},"Medicines","Clotrimazole, 500 mg, Vaginal Tab. + Applicator","Ovuol",60,6,null,{"$f":"Table145[[#This Row],[Quantity\nMiktar ]]*Table145[[#This Row],[UNIT PRICE]]","v":0}]
[{"$f":"IF(ISBLANK(B88),\"\",SUBTOTAL(103,$B$3:B88))","v":86},"Medicines","Ferrous Salt Eq. 60 mg Iron / Folic Acid 0.4 mg, Tab","Tablet",1500,6,null,{"$f":"Table145[[#This Row],[Quantity\nMiktar ]]*Table145[[#This Row],[UNIT PRICE]]","v":0}]
[{"$f":"IF(ISBLANK(B89),\"\",SUBTOTAL(103,$B$3:B89))","v":87},"Medicines","Ferrous Salt, Eq. Iron 45mg/5ml, Syrup, 200ml, Bot.","Bottle",10,6,null,{"$f":"Table145[[#This Row],[Quantity\nMiktar ]]*Table145[[#This Row],[UNIT PRICE]]","v":0}]
[{"$f":"IF(ISBLANK(B90),\"\",SUBTOTAL(103,$B$3:B90))","v":88},"Medicines","Furosemide, 40 mg, Tab.","Tablet",100,6,null,{"$f":"Table145[[#This Row],[Quantity\nMiktar ]]*Table145[[#This Row],[UNIT PRICE]]","v":0}]
[{"$f":"IF(ISBLANK(B91),\"\",SUBTOTAL(103,$B$3:B91))","v":89},"Medicines","Hydrocortisone 1% Cream, Topical 20mg","Cream",20,6,null,{"$f":"Table145[[#This Row],[Quantity\nMiktar ]]*Table145[[#This Row],[UNIT PRICE]]","v":0}]
[{"$f":"IF(ISBLANK(B92),\"\",SUBTOTAL(103,$B$3:B92))","v":90},"Medicines","Loratadine, 10mg, Tab.","Tablet",300,6,null,{"$f":"Table145[[#This Row],[Quantity\nMiktar ]]*Table145[[#This Row],[UNIT PRICE]]","v":0}]
[{"$f":"IF(ISBLANK(B93),\"\",SUBTOTAL(103,$B$3:B93))","v":91},"Medicines","Metformin Hcl 850mg","Tablet",1500,6,null,{"$f":"Table145[[#This Row],[Quantity\nMiktar ]]*Table145[[#This Row],[UNIT PRICE]]","v":0}]
[{"$f":"IF(ISBLANK(B94),\"\",SUBTOTAL(103,$B$3:B94))","v":92},"Medicines","Metronidazole 125mg/5ml Syrup","Bottle",30,6,null,{"$f":"Table145[[#This Row],[Quantity\nMiktar ]]*Table145[[#This Row],[UNIT PRICE]]","v":0}]
[{"$f":"IF(ISBLANK(B95),\"\",SUBTOTAL(103,$B$3:B95))","v":93},"Medicines","Miconazole Nitrate, 2%, Cream, 30 G, Tube","Tube",50,6,null,{"$f":"Table145[[#This Row],[Quantity\nMiktar ]]*Table145[[#This Row],[UNIT PRICE]]","v":0}]
[{"$f":"IF(ISBLANK(B96),\"\",SUBTOTAL(103,$B$3:B96))","v":94},"Medicines","Nystatin, 100,000 Iu/Ml, Oral Susp. + Graduated Dropper","Oral Suspension",20,6,null,{"$f":"Table145[[#This Row],[Quantity\nMiktar ]]*Table145[[#This Row],[UNIT PRICE]]","v":0}]
[{"$f":"IF(ISBLANK(B97),\"\",SUBTOTAL(103,$B$3:B97))","v":95},"Medicines","Omeprazole, 40 mg","Capsule",500,6,null,{"$f":"Table145[[#This Row],[Quantity\nMiktar ]]*Table145[[#This Row],[UNIT PRICE]]","v":0}]
[{"$f":"IF(ISBLANK(B98),\"\",SUBTOTAL(103,$B$3:B98))","v":96},"Medicines","Prednisolone 5mg","Tablet",500,6,null,{"$f":"Table145[[#This Row],[Quantity\nMiktar ]]*Table145[[#This Row],[UNIT PRICE]]","v":0}]
[{"$f":"IF(ISBLANK(B99),\"\",SUBTOTAL(103,$B$3:B99))","v":97},"Medicines","Salbutamol 2mg -100mcg/Ml 200 Doses Spray","Inhaler",30,6,null,{"$f":"Table145[[#This Row],[Quantity\nMiktar ]]*Table145[[#This Row],[UNIT PRICE]]","v":0}]
[{"$f":"IF(ISBLANK(B100),\"\",SUBTOTAL(103,$B$3:B100))","v":98},"Medicines","Valproate Sodium, 200 mg, Gastro-Resistant Tab.","Tablet",200,6,null,{"$f":"Table145[[#This Row],[Quantity\nMiktar ]]*Table145[[#This Row],[UNIT PRICE]]","v":0}]
[{"$f":"IF(ISBLANK(B101),\"\",SUBTOTAL(103,$B$3:B101))","v":99},"Medicines","Valproate Sodium, 200 mg/Ml, 40 Ml, Bot. + Syringe","Bottle",5,6,null,{"$f":"Table145[[#This Row],[Quantity\nMiktar ]]*Table145[[#This Row],[UNIT PRICE]]","v":0}]
[{"$f":"IF(ISBLANK(B102),\"\",SUBTOTAL(103,$B$3:B102))","v":100},"Medicines","Glebenglamid 5 mg","Tablet",1000,6,null,{"$f":"Table145[[#This Row],[Quantity\nMiktar ]]*Table145[[#This Row],[UNIT PRICE]]","v":0}]
[{"$f":"IF(ISBLANK(B103),\"\",SUBTOTAL(103,$B$3:B103))","v":101},"Medicines","Valproate Sodium, 500 mg, Gastro-Resistant Tab.","Tablet",150,6,null,{"$f":"Table145[[#This Row],[Quantity\nMiktar ]]*Table145[[#This Row],[UNIT PRICE]]","v":0}]
[{"$f":"IF(ISBLANK(B104),\"\",SUBTOTAL(103,$B$3:B104))","v":102},"Medical consumables","Alcohol_96 %_Solution","bott",40,6,null,{"$f":"Table145[[#This Row],[Quantity\nMiktar ]]*Table145[[#This Row],[UNIT PRICE]]","v":0}]
[{"$f":"IF(ISBLANK(B105),\"\",SUBTOTAL(103,$B$3:B105))","v":103},"Medical consumables","Blood Transfusion__Set","pcs",500,6,null,{"$f":"Table145[[#This Row],[Quantity\nMiktar ]]*Table145[[#This Row],[UNIT PRICE]]","v":0}]
[{"$f":"IF(ISBLANK(B106),\"\",SUBTOTAL(103,$B$3:B106))","v":104},"Medical consumables","Drape Surgical_150 × 240 CM_Disposable Sterile","pcs",700,6,null,{"$f":"Table145[[#This Row],[Quantity\nMiktar ]]*Table145[[#This Row],[UNIT PRICE]]","v":0}]
[{"$f":"IF(ISBLANK(B107),\"\",SUBTOTAL(103,$B$3:B107))","v":105},"Medical consumables","Drape Surgical_75 × 90 CM_Disposable Sterile","pcs",500,6,null,{"$f":"Table145[[#This Row],[Quantity\nMiktar ]]*Table145[[#This Row],[UNIT PRICE]]","v":0}]
[{"$f":"IF(ISBLANK(B108),\"\",SUBTOTAL(103,$B$3:B108))","v":106},"Medical consumables","Drape Surgical_90 × 150 CM_Disposable Sterile","pcs",400,6,null,{"$f":"Table145[[#This Row],[Quantity\nMiktar ]]*Table145[[#This Row],[UNIT PRICE]]","v":0}]
[{"$f":"IF(ISBLANK(B109),\"\",SUBTOTAL(103,$B$3:B109))","v":107},"Medical consumables","ECG Electrode__","pcs",3000,6,null,{"$f":"Table145[[#This Row],[Quantity\nMiktar ]]*Table145[[#This Row],[UNIT PRICE]]","v":0}]
[{"$f":"IF(ISBLANK(B110),\"\",SUBTOTAL(103,$B$3:B110))","v":108},"Medical consumables","Folly Catheter_CH 16_","pcs",200,6,null,{"$f":"Table145[[#This Row],[Quantity\nMiktar ]]*Table145[[#This Row],[UNIT PRICE]]","v":0}]
[{"$f":"IF(ISBLANK(B111),\"\",SUBTOTAL(103,$B$3:B111))","v":109},"Medical consumables","Folly Catheter_CH 18_","pcs",200,6,null,{"$f":"Table145[[#This Row],[Quantity\nMiktar ]]*Table145[[#This Row],[UNIT PRICE]]","v":0}]
[{"$f":"IF(ISBLANK(B112),\"\",SUBTOTAL(103,$B$3:B112))","v":110},"Medical consumables","Gauze Swabs_10 × 10 CM_or 7.5*7.5Non-Sterile","kg",300,6,null,{"$f":"Table145[[#This Row],[Quantity\nMiktar ]]*Table145[[#This Row],[UNIT PRICE]]","v":0}]
[{"$f":"IF(ISBLANK(B113),\"\",SUBTOTAL(103,$B$3:B113))","v":111},"Medical consumables","Gloves Examination_Large_Latex Non Sterile","pcs",500,6,null,{"$f":"Table145[[#This Row],[Quantity\nMiktar ]]*Table145[[#This Row],[UNIT PRICE]]","v":0}]
[{"$f":"IF(ISBLANK(B114),\"\",SUBTOTAL(103,$B$3:B114))","v":112},"Medical consumables","Gloves Examination_Medium_Latex Non Sterile","pcs",30000,6,null,{"$f":"Table145[[#This Row],[Quantity\nMiktar ]]*Table145[[#This Row],[UNIT PRICE]]","v":0}]
[{"$f":"IF(ISBLANK(B115),\"\",SUBTOTAL(103,$B$3:B115))","v":113},"Medical consumables","Gloves Surgical_Size 7.5_Sterile","pcs",3500,6,null,{"$f":"Table145[[#This Row],[Quantity\nMiktar ]]*Table145[[#This Row],[UNIT PRICE]]","v":0}]
[{"$f":"IF(ISBLANK(B116),\"\",SUBTOTAL(103,$B$3:B116))","v":114},"Medical consumables","Glutaraldehyde_2 %_Solution","bott",16,6,null,{"$f":"Table145[[#This Row],[Quantity\nMiktar ]]*Table145[[#This Row],[UNIT PRICE]]","v":0}]
[{"$f":"IF(ISBLANK(B117),\"\",SUBTOTAL(103,$B$3:B117))","v":115},"Medical consumables","Gown Surgical_Size L_Disposable Sterile","pcs",900,6,null,{"$f":"Table145[[#This Row],[Quantity\nMiktar ]]*Table145[[#This Row],[UNIT PRICE]]","v":0}]
[{"$f":"IF(ISBLANK(B118),\"\",SUBTOTAL(103,$B$3:B118))","v":116},"Medical consumables","Gown Surgical_Size XL_Disposable Sterile","pcs",900,6,null,{"$f":"Table145[[#This Row],[Quantity\nMiktar ]]*Table145[[#This Row],[UNIT PRICE]]","v":0}]
[{"$f":"IF(ISBLANK(B119),\"\",SUBTOTAL(103,$B$3:B119))","v":117},"Medical consumables","Gown Surgical_Size XXL_Disposable Sterile","pcs",400,6,null,{"$f":"Table145[[#This Row],[Quantity\nMiktar ]]*Table145[[#This Row],[UNIT PRICE]]","v":0}]
[{"$f":"IF(ISBLANK(B120),\"\",SUBTOTAL(103,$B$3:B120))","v":118},"Medical consumables","Iv Cannula_G 20_","pcs",9000,6,null,{"$f":"Table145[[#This Row],[Quantity\nMiktar ]]*Table145[[#This Row],[UNIT PRICE]]","v":0}]
[{"$f":"IF(ISBLANK(B121),\"\",SUBTOTAL(103,$B$3:B121))","v":119},"Medical consumables","Iv Cannula_G 22_","pcs",9000,6,null,{"$f":"Table145[[#This Row],[Quantity\nMiktar ]]*Table145[[#This Row],[UNIT PRICE]]","v":0}]
[{"$f":"IF(ISBLANK(B122),\"\",SUBTOTAL(103,$B$3:B122))","v":120},"Medical consumables","Iv Infusion__Set","pcs",8000,6,null,{"$f":"Table145[[#This Row],[Quantity\nMiktar ]]*Table145[[#This Row],[UNIT PRICE]]","v":0}]
[{"$f":"IF(ISBLANK(B123),\"\",SUBTOTAL(103,$B$3:B123))","v":121},"Medical consumables","Mask Nebulizer_Adult_","pcs",600,6,null,{"$f":"Table145[[#This Row],[Quantity\nMiktar ]]*Table145[[#This Row],[UNIT PRICE]]","v":0}]
[{"$f":"IF(ISBLANK(B124),\"\",SUBTOTAL(103,$B$3:B124))","v":122},"Medical consumables","Nelaton Catheter_CH 12_","pcs",400,6,null,{"$f":"Table145[[#This Row],[Quantity\nMiktar ]]*Table145[[#This Row],[UNIT PRICE]]","v":0}]
[{"$f":"IF(ISBLANK(B125),\"\",SUBTOTAL(103,$B$3:B125))","v":123},"Medical consumables","Nelaton Catheter_CH 8_","pcs",1000,6,null,{"$f":"Table145[[#This Row],[Quantity\nMiktar ]]*Table145[[#This Row],[UNIT PRICE]]","v":0}]
[{"$f":"IF(ISBLANK(B126),\"\",SUBTOTAL(103,$B$3:B126))","v":124},"Medical consumables","Paper ECG_8 Cm × 20 M_Roll","pcs",70,6,null,{"$f":"Table145[[#This Row],[Quantity\nMiktar ]]*Table145[[#This Row],[UNIT PRICE]]","v":0}]
[{"$f":"IF(ISBLANK(B127),\"\",SUBTOTAL(103,$B$3:B127))","v":125},"Medical consumables","Plaster Mefix_10 CM × 10 M_Roll","pcs",300,6,null,{"$f":"Table145[[#This Row],[Quantity\nMiktar ]]*Table145[[#This Row],[UNIT PRICE]]","v":0}]
[{"$f":"IF(ISBLANK(B128),\"\",SUBTOTAL(103,$B$3:B128))","v":126},"Medical consumables","Povidone_Iodine Solution 10 %_","pcs",170,6,null,{"$f":"Table145[[#This Row],[Quantity\nMiktar ]]*Table145[[#This Row],[UNIT PRICE]]","v":0}]
[{"$f":"IF(ISBLANK(B129),\"\",SUBTOTAL(103,$B$3:B129))","v":127},"Medical consumables","Surgical Blades Scalple_Sizes 11_Disposable Sterile","pcs",3500,6,null,{"$f":"Table145[[#This Row],[Quantity\nMiktar ]]*Table145[[#This Row],[UNIT PRICE]]","v":0}]
[{"$f":"IF(ISBLANK(B130),\"\",SUBTOTAL(103,$B$3:B130))","v":128},"Medical consumables","Surgical Blades Scalple_Sizes 15_Disposable Sterile","pcs",2000,6,null,{"$f":"Table145[[#This Row],[Quantity\nMiktar ]]*Table145[[#This Row],[UNIT PRICE]]","v":0}]
[{"$f":"IF(ISBLANK(B131),\"\",SUBTOTAL(103,$B$3:B131))","v":129},"Medical consumables","Surgical Blades Scalple_Sizes 22_Disposable Sterile","pcs",2000,6,null,{"$f":"Table145[[#This Row],[Quantity\nMiktar ]]*Table145[[#This Row],[UNIT PRICE]]","v":0}]
[{"$f":"IF(ISBLANK(B132),\"\",SUBTOTAL(103,$B$3:B132))","v":130},"Medical consumables","Surgical Blades Scalple_Sizes 24_Disposable Sterile","pcs",1000,6,null,{"$f":"Table145[[#This Row],[Quantity\nMiktar ]]*Table145[[#This Row],[UNIT PRICE]]","v":0}]
[{"$f":"IF(ISBLANK(B133),\"\",SUBTOTAL(103,$B$3:B133))","v":131},"Medical consumables","Surgical polypropylene Suture_2/0_Needle Cutting","pcs",240,6,null,{"$f":"Table145[[#This Row],[Quantity\nMiktar ]]*Table145[[#This Row],[UNIT PRICE]]","v":0}]
[{"$f":"IF(ISBLANK(B134),\"\",SUBTOTAL(103,$B$3:B134))","v":132},"Medical consumables","Surgical polypropylene Suture_3/0_Needle Cutting","pcs",120,6,null,{"$f":"Table145[[#This Row],[Quantity\nMiktar ]]*Table145[[#This Row],[UNIT PRICE]]","v":0}]
[{"$f":"IF(ISBLANK(B135),\"\",SUBTOTAL(103,$B$3:B135))","v":133},"Medical consumables","Surgical polypropylene Suture_2/0_Needle Round","pcs",120,6,null,{"$f":"Table145[[#This Row],[Quantity\nMiktar ]]*Table145[[#This Row],[UNIT PRICE]]","v":0}]
[{"$f":"IF(ISBLANK(B136),\"\",SUBTOTAL(103,$B$3:B136))","v":134},"Medical consumables","Surgical polypropylene Suture_4/0_Needle Cutting","pcs",240,6,null,{"$f":"Table145[[#This Row],[Quantity\nMiktar ]]*Table145[[#This Row],[UNIT PRICE]]","v":0}]
[{"$f":"IF(ISBLANK(B137),\"\",SUBTOTAL(103,$B$3:B137))","v":135},"Medical consumables","Surgical polypropylene Suture_4/0_Needle Round","pcs",48,6,null,{"$f":"Table145[[#This Row],[Quantity\nMiktar ]]*Table145[[#This Row],[UNIT PRICE]]","v":0}]
[{"$f":"IF(ISBLANK(B138),\"\",SUBTOTAL(103,$B$3:B138))","v":136},"Medical consumables","Surgical polypropylene Suture_5/0_Needle Cutting","pcs",300,6,null,{"$f":"Table145[[#This Row],[Quantity\nMiktar ]]*Table145[[#This Row],[UNIT PRICE]]","v":0}]
[{"$f":"IF(ISBLANK(B139),\"\",SUBTOTAL(103,$B$3:B139))","v":137},"Medical consumables","Surgical Vicryl Suture_0_Needle Round","pcs",240,6,null,{"$f":"Table145[[#This Row],[Quantity\nMiktar ]]*Table145[[#This Row],[UNIT PRICE]]","v":0}]
[{"$f":"IF(ISBLANK(B140),\"\",SUBTOTAL(103,$B$3:B140))","v":138},"Medical consumables","Surgical Vicryl Suture_1_Needle Round","pcs",240,6,null,{"$f":"Table145[[#This Row],[Quantity\nMiktar ]]*Table145[[#This Row],[UNIT PRICE]]","v":0}]
[{"$f":"IF(ISBLANK(B141),\"\",SUBTOTAL(103,$B$3:B141))","v":139},"Medical consumables","Surgical Vicryl Suture_2/0_Needle Round","pcs",240,6,null,{"$f":"Table145[[#This Row],[Quantity\nMiktar ]]*Table145[[#This Row],[UNIT PRICE]]","v":0}]
[{"$f":"IF(ISBLANK(B142),\"\",SUBTOTAL(103,$B$3:B142))","v":140},"Medical consumables","Surgical Vicryl Suture_2_Needle Round","pcs",960,6,null,{"$f":"Table145[[#This Row],[Quantity\nMiktar ]]*Table145[[#This Row],[UNIT PRICE]]","v":0}]
[{"$f":"IF(ISBLANK(B143),\"\",SUBTOTAL(103,$B$3:B143))","v":141},"Medical consumables","Surgical Vicryl Suture_3/0_Needle Round","pcs",240,6,null,{"$f":"Table145[[#This Row],[Quantity\nMiktar ]]*Table145[[#This Row],[UNIT PRICE]]","v":0}]
[{"$f":"IF(ISBLANK(B144),\"\",SUBTOTAL(103,$B$3:B144))","v":142},"Medical consumables","Surgical Vicryl Suture_2/0_Needle Round","pcs",72,6,null,{"$f":"Table145[[#This Row],[Quantity\nMiktar ]]*Table145[[#This Row],[UNIT PRICE]]","v":0}]
[{"$f":"IF(ISBLANK(B145),\"\",SUBTOTAL(103,$B$3:B145))","v":143},"Medical consumables","Syringe_10 ML_","pcs",5000,6,null,{"$f":"Table145[[#This Row],[Quantity\nMiktar ]]*Table145[[#This Row],[UNIT PRICE]]","v":0}]
[{"$f":"IF(ISBLANK(B146),\"\",SUBTOTAL(103,$B$3:B146))","v":144},"Medical consumables","Syringe_3 ML_","pcs",12000,6,null,{"$f":"Table145[[#This Row],[Quantity\nMiktar ]]*Table145[[#This Row],[UNIT PRICE]]","v":0}]
[{"$f":"IF(ISBLANK(B147),\"\",SUBTOTAL(103,$B$3:B147))","v":145},"Medical consumables","Syringe_5 ML_","pcs",35000,6,null,{"$f":"Table145[[#This Row],[Quantity\nMiktar ]]*Table145[[#This Row],[UNIT PRICE]]","v":0}]
[{"$f":"IF(ISBLANK(B148),\"\",SUBTOTAL(103,$B$3:B148))","v":146},"Medical consumables","Syringe_50 ML_Feeding","pcs",100,6,null,{"$f":"Table145[[#This Row],[Quantity\nMiktar ]]*Table145[[#This Row],[UNIT PRICE]]","v":0}]
[{"$f":"IF(ISBLANK(B149),\"\",SUBTOTAL(103,$B$3:B149))","v":147},"Medical consumables","Tube Endotracheal_Size 4.5_With Cuff","pcs",200,6,null,{"$f":"Table145[[#This Row],[Quantity\nMiktar ]]*Table145[[#This Row],[UNIT PRICE]]","v":0}]
[{"$f":"IF(ISBLANK(B150),\"\",SUBTOTAL(103,$B$3:B150))","v":148},"Medical consumables","Tube Endotracheal_Size 4_With Cuff","pcs",200,6,null,{"$f":"Table145[[#This Row],[Quantity\nMiktar ]]*Table145[[#This Row],[UNIT PRICE]]","v":0}]
[{"$f":"IF(ISBLANK(B151),\"\",SUBTOTAL(103,$B$3:B151))","v":149},"Medical consumables","Tube Endotracheal_Size 5.5_With Cuff","pcs",200,6,null,{"$f":"Table145[[#This Row],[Quantity\nMiktar ]]*Table145[[#This Row],[UNIT PRICE]]","v":0}]
[{"$f":"IF(ISBLANK(B152),\"\",SUBTOTAL(103,$B$3:B152))","v":150},"Medical consumables","Tube Endotracheal_Size 5_With Cuff","pcs",200,6,null,{"$f":"Table145[[#This Row],[Quantity\nMiktar ]]*Table145[[#This Row],[UNIT PRICE]]","v":0}]
[{"$f":"IF(ISBLANK(B153),\"\",SUBTOTAL(103,$B$3:B153))","v":151},"Medical consumables","Tube Endotracheal_Size 6_With Cuff","pcs",200,6,null,{"$f":"Table145[[#This Row],[Quantity\nMiktar ]]*Table145[[#This Row],[UNIT PRICE]]","v":0}]
[{"$f":"IF(ISBLANK(B154),\"\",SUBTOTAL(103,$B$3:B154))","v":152},"Medical consumables","Tube Endotracheal_Size 6.5_With Cuff","pcs",200,6,null,{"$f":"Table145[[#This Row],[Quantity\nMiktar ]]*Table145[[#This Row],[UNIT PRICE]]","v":0}]
[{"$f":"IF(ISBLANK(B155),\"\",SUBTOTAL(103,$B$3:B155))","v":153},"Medical consumables","Tube Endotracheal_Size 7.5_With Cuff","pcs",250,6,null,{"$f":"Table145[[#This Row],[Quantity\nMiktar ]]*Table145[[#This Row],[UNIT PRICE]]","v":0}]
[{"$f":"IF(ISBLANK(B156),\"\",SUBTOTAL(103,$B$3:B156))","v":154},"Medical consumables","Tube Endotracheal_Size 7_With Cuff","pcs",250,6,null,{"$f":"Table145[[#This Row],[Quantity\nMiktar ]]*Table145[[#This Row],[UNIT PRICE]]","v":0}]
[{"$f":"IF(ISBLANK(B157),\"\",SUBTOTAL(103,$B$3:B157))","v":155},"Medical consumables","Ultrasound__Gel","pcs",60,6,null,{"$f":"Table145[[#This Row],[Quantity\nMiktar ]]*Table145[[#This Row],[UNIT PRICE]]","v":0}]
[{"$f":"IF(ISBLANK(B158),\"\",SUBTOTAL(103,$B$3:B158))","v":156},"Medical consumables","Urine Bag_2000 ML_","pcs",1000,6,null,{"$f":"Table145[[#This Row],[Quantity\nMiktar ]]*Table145[[#This Row],[UNIT PRICE]]","v":0}]
[{"$f":"IF(ISBLANK(B159),\"\",SUBTOTAL(103,$B$3:B159))","v":157},"Medical consumables","Compression bandage","Piece",500,6,null,{"$f":"Table145[[#This Row],[Quantity\nMiktar ]]*Table145[[#This Row],[UNIT PRICE]]","v":0}]
[{"$f":"IF(ISBLANK(B160),\"\",SUBTOTAL(103,$B$3:B160))","v":158},"Medical consumables"," Gauze  bandage ","Piece",1500,6,null,{"$f":"Table145[[#This Row],[Quantity\nMiktar ]]*Table145[[#This Row],[UNIT PRICE]]","v":0}]
[{"$f":"IF(ISBLANK(B161),\"\",SUBTOTAL(103,$B$3:B161))","v":159},"Medical consumables","Micro drip set","Piece",100,6,null,{"$f":"Table145[[#This Row],[Quantity\nMiktar ]]*Table145[[#This Row],[UNIT PRICE]]","v":0}]
[{"$f":"IF(ISBLANK(B162),\"\",SUBTOTAL(103,$B$3:B162))","v":160},"Medical consumables","Nylon sutures 2","Box",15,6,null,{"$f":"Table145[[#This Row],[Quantity\nMiktar ]]*Table145[[#This Row],[UNIT PRICE]]","v":0}]
[{"$f":"IF(ISBLANK(B163),\"\",SUBTOTAL(103,$B$3:B163))","v":161},"Medical consumables","Chromic surtures 1","Box",20,6,null,{"$f":"Table145[[#This Row],[Quantity\nMiktar ]]*Table145[[#This Row],[UNIT PRICE]]","v":0}]
[{"$f":"IF(ISBLANK(B164),\"\",SUBTOTAL(103,$B$3:B164))","v":162},"Medical consumables","Iv Cannula_G 24_","pcs",1500,6,null,{"$f":"Table145[[#This Row],[Quantity\nMiktar ]]*Table145[[#This Row],[UNIT PRICE]]","v":0}]
[{"$f":"IF(ISBLANK(B165),\"\",SUBTOTAL(103,$B$3:B165))","v":163},"Medical consumables","Needle for lumbar puncture","pcs",200,6,null,{"$f":"Table145[[#This Row],[Quantity\nMiktar ]]*Table145[[#This Row],[UNIT PRICE]]","v":0}]
[{"$f":"IF(ISBLANK(B166),\"\",SUBTOTAL(103,$B$3:B166))","v":164},"Medical consumables","Tongue depressor 100Pcs","Box",50,6,null,{"$f":"Table145[[#This Row],[Quantity\nMiktar ]]*Table145[[#This Row],[UNIT PRICE]]","v":0}]
[{"$f":"IF(ISBLANK(B167),\"\",SUBTOTAL(103,$B$3:B167))","v":165},"Medical consumables","Nylon Gloves","Box",20,6,null,{"$f":"Table145[[#This Row],[Quantity\nMiktar ]]*Table145[[#This Row],[UNIT PRICE]]","v":0}]
[{"$f":"IF(ISBLANK(B168),\"\",SUBTOTAL(103,$B$3:B168))","v":166},"Medical consumables"," Disposable Syringe 10 ml,sterile ","pcs",500,6,null,{"$f":"Table145[[#This Row],[Quantity\nMiktar ]]*Table145[[#This Row],[UNIT PRICE]]","v":0}]
[{"$f":"IF(ISBLANK(B169),\"\",SUBTOTAL(103,$B$3:B169))","v":167},"lab consumables","ABX Miniclean__Solution","ml",8000,6,null,{"$f":"Table145[[#This Row],[Quantity\nMiktar ]]*Table145[[#This Row],[UNIT PRICE]]","v":0}]
[{"$f":"IF(ISBLANK(B170),\"\",SUBTOTAL(103,$B$3:B170))","v":168},"lab consumables","ABX Minidil LMG__Solution","ml",80000,6,null,{"$f":"Table145[[#This Row],[Quantity\nMiktar ]]*Table145[[#This Row],[UNIT PRICE]]","v":0}]
[{"$f":"IF(ISBLANK(B171),\"\",SUBTOTAL(103,$B$3:B171))","v":169},"lab consumables","ABX Minilisse LMG__Solution","ml",4000,6,null,{"$f":"Table145[[#This Row],[Quantity\nMiktar ]]*Table145[[#This Row],[UNIT PRICE]]","v":0}]
[{"$f":"IF(ISBLANK(B172),\"\",SUBTOTAL(103,$B$3:B172))","v":170},"lab consumables","Glucose Reagent__Solution","ml",2000,6,null,{"$f":"Table145[[#This Row],[Quantity\nMiktar ]]*Table145[[#This Row],[UNIT PRICE]]","v":0}]
[{"$f":"IF(ISBLANK(B173),\"\",SUBTOTAL(103,$B$3:B173))","v":171},"lab consumables","Urea Reagent__Solution","ml",1000,6,null,{"$f":"Table145[[#This Row],[Quantity\nMiktar ]]*Table145[[#This Row],[UNIT PRICE]]","v":0}]
[{"$f":"IF(ISBLANK(B174),\"\",SUBTOTAL(103,$B$3:B174))","v":172},"lab consumables","ALT (SGPT) Reagent__Solution","ml",1200,6,null,{"$f":"Table145[[#This Row],[Quantity\nMiktar ]]*Table145[[#This Row],[UNIT PRICE]]","v":0}]
[{"$f":"IF(ISBLANK(B175),\"\",SUBTOTAL(103,$B$3:B175))","v":173},"lab consumables","Uric Acid Reagent__Solution","ml",300,6,null,{"$f":"Table145[[#This Row],[Quantity\nMiktar ]]*Table145[[#This Row],[UNIT PRICE]]","v":0}]
[{"$f":"IF(ISBLANK(B176),\"\",SUBTOTAL(103,$B$3:B176))","v":174},"lab consumables","Blue Micropipette Tips__Plastic","pices",8000,6,null,{"$f":"Table145[[#This Row],[Quantity\nMiktar ]]*Table145[[#This Row],[UNIT PRICE]]","v":0}]
[{"$f":"IF(ISBLANK(B177),\"\",SUBTOTAL(103,$B$3:B177))","v":175},"lab consumables","CK - MB Reagent__Solution","ml",200,6,null,{"$f":"Table145[[#This Row],[Quantity\nMiktar ]]*Table145[[#This Row],[UNIT PRICE]]","v":0}]
[{"$f":"IF(ISBLANK(B178),\"\",SUBTOTAL(103,$B$3:B178))","v":176},"lab consumables","Creatinine Reagent__Solution","ml",2000,6,null,{"$f":"Table145[[#This Row],[Quantity\nMiktar ]]*Table145[[#This Row],[UNIT PRICE]]","v":0}]
[{"$f":"IF(ISBLANK(B179),\"\",SUBTOTAL(103,$B$3:B179))","v":177},"lab consumables","Protein (Urin - CSF) Reagent__Solution","ml",400,6,null,{"$f":"Table145[[#This Row],[Quantity\nMiktar ]]*Table145[[#This Row],[UNIT PRICE]]","v":0}]
[{"$f":"IF(ISBLANK(B180),\"\",SUBTOTAL(103,$B$3:B180))","v":178},"lab consumables","Plastic Urine Collection Box 100 ML__Box","pices",6600,6,null,{"$f":"Table145[[#This Row],[Quantity\nMiktar ]]*Table145[[#This Row],[UNIT PRICE]]","v":0}]
[{"$f":"IF(ISBLANK(B181),\"\",SUBTOTAL(103,$B$3:B181))","v":179},"lab consumables","anti A","ml",60,6,null,{"$f":"Table145[[#This Row],[Quantity\nMiktar ]]*Table145[[#This Row],[UNIT PRICE]]","v":0}]
[{"$f":"IF(ISBLANK(B182),\"\",SUBTOTAL(103,$B$3:B182))","v":180},"lab consumables","anti B","ml",60,6,null,{"$f":"Table145[[#This Row],[Quantity\nMiktar ]]*Table145[[#This Row],[UNIT PRICE]]","v":0}]
[{"$f":"IF(ISBLANK(B183),\"\",SUBTOTAL(103,$B$3:B183))","v":181},"lab consumables","anti R","ml",60,6,null,{"$f":"Table145[[#This Row],[Quantity\nMiktar ]]*Table145[[#This Row],[UNIT PRICE]]","v":0}]
[{"$f":"IF(ISBLANK(B184),\"\",SUBTOTAL(103,$B$3:B184))","v":182},"lab consumables"," Plastic Tubes urian Dry 10 ML__Tube","pices",8000,6,null,{"$f":"Table145[[#This Row],[Quantity\nMiktar ]]*Table145[[#This Row],[UNIT PRICE]]","v":0}]
[{"$f":"IF(ISBLANK(B185),\"\",SUBTOTAL(103,$B$3:B185))","v":183},"lab consumables","Crystal Plastic Tubes Dry 5 ML__Tube","pices",15000,6,null,{"$f":"Table145[[#This Row],[Quantity\nMiktar ]]*Table145[[#This Row],[UNIT PRICE]]","v":0}]
[{"$f":"IF(ISBLANK(B186),\"\",SUBTOTAL(103,$B$3:B186))","v":184},"lab consumables","Hepatitis B Test__Strip","pices",120,6,null,{"$f":"Table145[[#This Row],[Quantity\nMiktar ]]*Table145[[#This Row],[UNIT PRICE]]","v":0}]
[{"$f":"IF(ISBLANK(B187),\"\",SUBTOTAL(103,$B$3:B187))","v":185},"lab consumables","Hepatitis C Test__Strip","pices",120,6,null,{"$f":"Table145[[#This Row],[Quantity\nMiktar ]]*Table145[[#This Row],[UNIT PRICE]]","v":0}]
[{"$f":"IF(ISBLANK(B188),\"\",SUBTOTAL(103,$B$3:B188))","v":186},"lab consumables","Microscope Blank Glass Slides 76.2*25.4 mm__Slide","pices",8000,6,null,{"$f":"Table145[[#This Row],[Quantity\nMiktar ]]*Table145[[#This Row],[UNIT PRICE]]","v":0}]
[{"$f":"IF(ISBLANK(B189),\"\",SUBTOTAL(103,$B$3:B189))","v":187},"lab consumables","Microscope Cover Glass 22*22 mm__Slide","pices",6000,6,null,{"$f":"Table145[[#This Row],[Quantity\nMiktar ]]*Table145[[#This Row],[UNIT PRICE]]","v":0}]
[{"$f":"IF(ISBLANK(B190),\"\",SUBTOTAL(103,$B$3:B190))","v":188},"lab consumables","Bllood bag 500ml","pices",50,6,null,{"$f":"Table145[[#This Row],[Quantity\nMiktar ]]*Table145[[#This Row],[UNIT PRICE]]","v":0}]
[{"$f":"IF(ISBLANK(B191),\"\",SUBTOTAL(103,$B$3:B191))","v":189},"lab consumables","Tube Citrate Sodium__Tube","pices",400,6,null,{"$f":"Table145[[#This Row],[Quantity\nMiktar ]]*Table145[[#This Row],[UNIT PRICE]]","v":0}]
[{"$f":"IF(ISBLANK(B192),\"\",SUBTOTAL(103,$B$3:B192))","v":190},"lab consumables","Tube EDTA__Tube","pices",7200,6,null,{"$f":"Table145[[#This Row],[Quantity\nMiktar ]]*Table145[[#This Row],[UNIT PRICE]]","v":0}]
[{"$f":"IF(ISBLANK(B193),\"\",SUBTOTAL(103,$B$3:B193))","v":191},"lab consumables","PT Reagent","ML",80,6,null,{"$f":"Table145[[#This Row],[Quantity\nMiktar ]]*Table145[[#This Row],[UNIT PRICE]]","v":0}]
[192,"lab consumables","Anti Human Globulin Gel__Card","pices",96,6,null,{"$f":"Table145[[#This Row],[Quantity\nMiktar ]]*Table145[[#This Row],[UNIT PRICE]]","v":0}]
[{"$f":"IF(ISBLANK(B195),\"\",SUBTOTAL(103,$B$3:B195))","v":193},"lab consumables","Tube PT covit__Tube","pices",600,6,null,{"$f":"Table145[[#This Row],[Quantity\nMiktar ]]*Table145[[#This Row],[UNIT PRICE]]","v":0}]
[{"$f":"IF(ISBLANK(B196),\"\",SUBTOTAL(103,$B$3:B196))","v":194},"lab consumables","Tube Heparin__Tube","pices",6500,6,null,{"$f":"Table145[[#This Row],[Quantity\nMiktar ]]*Table145[[#This Row],[UNIT PRICE]]","v":0}]
[{"$f":"IF(ISBLANK(B197),\"\",SUBTOTAL(103,$B$3:B197))","v":195},"lab consumables","Yellow Micropipette Tips__Plastic","pices",15000,6,null,{"$f":"Table145[[#This Row],[Quantity\nMiktar ]]*Table145[[#This Row],[UNIT PRICE]]","v":0}]
[{"$f":"IF(ISBLANK(B198),\"\",SUBTOTAL(103,$B$3:B198))","v":196},"lab consumables","Amylase Reagent__Solution","ml",300,6,null,{"$f":"Table145[[#This Row],[Quantity\nMiktar ]]*Table145[[#This Row],[UNIT PRICE]]","v":0}]
[{"$f":"IF(ISBLANK(B199),\"\",SUBTOTAL(103,$B$3:B199))","v":197},"lab consumables","Bilirubin Total and Direct Reagent__Solution","ml",600,6,null,{"$f":"Table145[[#This Row],[Quantity\nMiktar ]]*Table145[[#This Row],[UNIT PRICE]]","v":0}]
[{"$f":"IF(ISBLANK(B200),\"\",SUBTOTAL(103,$B$3:B200))","v":198},"lab consumables","HAV Test__Strip","pices",80,6,null,{"$f":"Table145[[#This Row],[Quantity\nMiktar ]]*Table145[[#This Row],[UNIT PRICE]]","v":0}]
[{"$f":"IF(ISBLANK(B201),\"\",SUBTOTAL(103,$B$3:B201))","v":199},"lab consumables","HIV Test__Strip","pices",80,6,null,{"$f":"Table145[[#This Row],[Quantity\nMiktar ]]*Table145[[#This Row],[UNIT PRICE]]","v":0}]
[{"$f":"IF(ISBLANK(B202),\"\",SUBTOTAL(103,$B$3:B202))","v":200},"lab consumables","LDH Reagent__Solution","ml",150,6,null,{"$f":"Table145[[#This Row],[Quantity\nMiktar ]]*Table145[[#This Row],[UNIT PRICE]]","v":0}]
[{"$f":"IF(ISBLANK(B203),\"\",SUBTOTAL(103,$B$3:B203))","v":201},"lab consumables","Troponin Test__Strip","pices",150,6,null,{"$f":"Table145[[#This Row],[Quantity\nMiktar ]]*Table145[[#This Row],[UNIT PRICE]]","v":0}]
[{"$f":"IF(ISBLANK(B204),\"\",SUBTOTAL(103,$B$3:B204))","v":202},"lab consumables","CRP","ml",1200,6,null,{"$f":"Table145[[#This Row],[Quantity\nMiktar ]]*Table145[[#This Row],[UNIT PRICE]]","v":0}]
[{"$f":"IF(ISBLANK(B205),\"\",SUBTOTAL(103,$B$3:B205))","v":203},"lab consumables","ASLO Active Reagent__Solution","ml",100,6,null,{"$f":"Table145[[#This Row],[Quantity\nMiktar ]]*Table145[[#This Row],[UNIT PRICE]]","v":0}]
[{"$f":"IF(ISBLANK(B206),\"\",SUBTOTAL(103,$B$3:B206))","v":204},"lab consumables","Hematocrit Capillary Tubes Blue__Tube","pices",200,6,null,{"$f":"Table145[[#This Row],[Quantity\nMiktar ]]*Table145[[#This Row],[UNIT PRICE]]","v":0}]
[{"$f":"IF(ISBLANK(B207),\"\",SUBTOTAL(103,$B$3:B207))","v":205},"lab consumables","Hematocrit Capillary Tubes RED__Tube","pices",320,6,null,{"$f":"Table145[[#This Row],[Quantity\nMiktar ]]*Table145[[#This Row],[UNIT PRICE]]","v":0}]
[{"$f":"IF(ISBLANK(B208),\"\",SUBTOTAL(103,$B$3:B208))","v":206},"lab consumables","widal Reagent__Solution","kit",4,6,null,{"$f":"Table145[[#This Row],[Quantity\nMiktar ]]*Table145[[#This Row],[UNIT PRICE]]","v":0}]
[{"$f":"IF(ISBLANK(B209),\"\",SUBTOTAL(103,$B$3:B209))","v":207},"lab consumables","right  Reagent__Solution","kit",4,6,null,{"$f":"Table145[[#This Row],[Quantity\nMiktar ]]*Table145[[#This Row],[UNIT PRICE]]","v":0}]
[{"$f":"IF(ISBLANK(B210),\"\",SUBTOTAL(103,$B$3:B210))","v":208},"lab consumables","tupe for pt dives (covet)","pices",400,6,null,{"$f":"Table145[[#This Row],[Quantity\nMiktar ]]*Table145[[#This Row],[UNIT PRICE]]","v":0}]
[{"$f":"IF(ISBLANK(B211),\"\",SUBTOTAL(103,$B$3:B211))","v":209},"lab consumables","calpration for cornely aft 500 (جهاز شوارد","kit",4,6,null,{"$f":"Table145[[#This Row],[Quantity\nMiktar ]]*Table145[[#This Row],[UNIT PRICE]]","v":0}]
[{"$f":"IF(ISBLANK(B212),\"\",SUBTOTAL(103,$B$3:B212))","v":210},"lab consumables","calpration for for idan I15 (جهاز غازات دم","kit",2,6,null,{"$f":"Table145[[#This Row],[Quantity\nMiktar ]]*Table145[[#This Row],[UNIT PRICE]]","v":0}]
[{"$f":"IF(ISBLANK(B213),\"\",SUBTOTAL(103,$B$3:B213))","v":211},"lab consumables","Streeptes idan I15 (جهاز غازات دم","kit",100,6,null,{"$f":"Table145[[#This Row],[Quantity\nMiktar ]]*Table145[[#This Row],[UNIT PRICE]]","v":0}]
[{"$f":"IF(ISBLANK(B214),\"\",SUBTOTAL(103,$B$3:B214))","v":212},"lab consumables","urine collection bags","bag",400,6,null,{"$f":"Table145[[#This Row],[Quantity\nMiktar ]]*Table145[[#This Row],[UNIT PRICE]]","v":0}]
[{"$f":"IF(ISBLANK(B215),\"\",SUBTOTAL(103,$B$3:B215))","v":213},"lab consumables","urine tape","box",8,6,null,{"$f":"Table145[[#This Row],[Quantity\nMiktar ]]*Table145[[#This Row],[UNIT PRICE]]","v":0}]
[{"$f":"IF(ISBLANK(B216),\"\",SUBTOTAL(103,$B$3:B216))","v":214},"lab consumables","chemical work tubes 5 ml","tube",2000,6,null,{"$f":"Table145[[#This Row],[Quantity\nMiktar ]]*Table145[[#This Row],[UNIT PRICE]]","v":0}]
[{"$f":"IF(ISBLANK(B217),\"\",SUBTOTAL(103,$B$3:B217))","v":215},"lab consumables","conical urine tube","tube",1000,6,null,{"$f":"Table145[[#This Row],[Quantity\nMiktar ]]*Table145[[#This Row],[UNIT PRICE]]","v":0}]
[{"$f":"IF(ISBLANK(B218),\"\",SUBTOTAL(103,$B$3:B218))","v":216},"lab consumables","CRP kit 50 ml biosystem","kit",4,6,null,{"$f":"Table145[[#This Row],[Quantity\nMiktar ]]*Table145[[#This Row],[UNIT PRICE]]","v":0}]
[{"$f":"IF(ISBLANK(B219),\"\",SUBTOTAL(103,$B$3:B219))","v":217},"lab consumables","BSA","box",4,6,null,{"$f":"Table145[[#This Row],[Quantity\nMiktar ]]*Table145[[#This Row],[UNIT PRICE]]","v":0}]
[{"$f":"IF(ISBLANK(B220),\"\",SUBTOTAL(103,$B$3:B220))","v":218},"lab consumables","Distilled water","bottle",5,6,null,{"$f":"Table145[[#This Row],[Quantity\nMiktar ]]*Table145[[#This Row],[UNIT PRICE]]","v":0}]
[{"$f":"IF(ISBLANK(B221),\"\",SUBTOTAL(103,$B$3:B221))","v":219},"lab consumables","bloody group","group",4,6,null,{"$f":"Table145[[#This Row],[Quantity\nMiktar ]]*Table145[[#This Row],[UNIT PRICE]]","v":0}]
[{"$f":"IF(ISBLANK(B222),\"\",SUBTOTAL(103,$B$3:B222))","v":220},"lab consumables"," HBsAg rabid test","Piece",100,6,null,{"$f":"Table145[[#This Row],[Quantity\nMiktar ]]*Table145[[#This Row],[UNIT PRICE]]","v":0}]
[{"$f":"IF(ISBLANK(B223),\"\",SUBTOTAL(103,$B$3:B223))","v":221},"lab consumables","HCV rabid test","Piece",100,6,null,{"$f":"Table145[[#This Row],[Quantity\nMiktar ]]*Table145[[#This Row],[UNIT PRICE]]","v":0}]
[{"$f":"IF(ISBLANK(B224),\"\",SUBTOTAL(103,$B$3:B224))","v":222},"lab consumables","pregnant rabid test","Piece",600,6,null,{"$f":"Table145[[#This Row],[Quantity\nMiktar ]]*Table145[[#This Row],[UNIT PRICE]]","v":0}]
[null,null,"Total",null,null,null,null,{"$f":"SUBTOTAL(109,Table145[TOTAL PRICE])","v":0}]
["Supplier Name | اسم المزود"]
["Supplier & Signature | توقيع وختم المزود"]

{"sheet":"BoQ 01 ( Technical )","index":2,"n_rows":231,"n_cols":10,"rows_kept":231,"cut":false,"hidden":false,"merged":[[0,3,0,9]]}
["BoQ 01",null,"PR/KS-relief 047-01/KS-RELIEF1.01-1.02/GZT/PRO-HE/15-8-2024/A","Technical"]
["SN","Category\nKategori","Technical Specifications\nTeknik Özellikler","Unit\nBirim","Trade Name\nTicari Adı","Expiry Date\nSon Kullanma Tarihi","Country of Origin\nMenşei Ülke","Package & Form\nPaket ve Form","Dose\nDoz","Company Or Agent Name\nŞirket veya Temsilci Adı "]
[{"$f":"IF(ISBLANK(B3),\"\",SUBTOTAL(103,$B$3:B3))","v":1},"Medicines","AdenosineAmp3 MG/1ML","amp"]
[{"$f":"IF(ISBLANK(B4),\"\",SUBTOTAL(103,$B$3:B4))","v":2},"Medicines","Amiodarone_150 MG / 3 ML_Amp","vial"]
[{"$f":"IF(ISBLANK(B5),\"\",SUBTOTAL(103,$B$3:B5))","v":3},"Medicines","Budesonide 1mg/2ML  Nebuliser suspension ","amp"]
[{"$f":"IF(ISBLANK(B6),\"\",SUBTOTAL(103,$B$3:B6))","v":4},"Medicines","chlopheneramine 45.5mg/2ml","amp"]
[{"$f":"IF(ISBLANK(B7),\"\",SUBTOTAL(103,$B$3:B7))","v":5},"Medicines","Chlorpromazine_25 MG / 5 ML_Amp","vial"]
[{"$f":"IF(ISBLANK(B8),\"\",SUBTOTAL(103,$B$3:B8))","v":6},"Medicines","CiprofloxacinBag200 mg / 100 ml","amp"]
[{"$f":"IF(ISBLANK(B9),\"\",SUBTOTAL(103,$B$3:B9))","v":7},"Medicines","Dexamethasone_4 MG / 1 ML_Amp","amp"]
[{"$f":"IF(ISBLANK(B10),\"\",SUBTOTAL(103,$B$3:B10))","v":8},"Medicines","Diazepam_10 MG / 2 ML_Amp","amp"]
[{"$f":"IF(ISBLANK(B11),\"\",SUBTOTAL(103,$B$3:B11))","v":9},"Medicines","Diclofenac Sodium_75 MG / 3 ML_Amp","amp"]
[{"$f":"IF(ISBLANK(B12),\"\",SUBTOTAL(103,$B$3:B12))","v":10},"Medicines","Hydrocortisone_100 MG_Vial","amp"]
[{"$f":"IF(ISBLANK(B13),\"\",SUBTOTAL(103,$B$3:B13))","v":11},"Medicines","Hyoscine - N - Butylbromide_20 MG / ML_Amp","amp"]
[{"$f":"IF(ISBLANK(B14),\"\",SUBTOTAL(103,$B$3:B14))","v":12},"Medicines","Isoflurane B.P_Inhalation Solution","flak"]
[{"$f":"IF(ISBLANK(B15),\"\",SUBTOTAL(103,$B$3:B15))","v":13},"Medicines","Ketamine_50 MG / ML_Vial","vial"]
[{"$f":"IF(ISBLANK(B16),\"\",SUBTOTAL(103,$B$3:B16))","v":14},"Medicines","levofloxacin 500mg for iv","flaq"]
[{"$f":"IF(ISBLANK(B17),\"\",SUBTOTAL(103,$B$3:B17))","v":15},"Medicines","Metoprolol_5 MG / 5 ML_Amp","amp"]
[{"$f":"IF(ISBLANK(B18),\"\",SUBTOTAL(103,$B$3:B18))","v":16},"Medicines","MetronidazoleVial500MG/ 100ML","vial"]
[{"$f":"IF(ISBLANK(B19),\"\",SUBTOTAL(103,$B$3:B19))","v":17},"Medicines","Morphine_10 MG / ML_Amp","flak"]
[{"$f":"IF(ISBLANK(B20),\"\",SUBTOTAL(103,$B$3:B20))","v":18},"Medicines","Omeprazole_40 MG_Vial","amp"]
[{"$f":"IF(ISBLANK(B21),\"\",SUBTOTAL(103,$B$3:B21))","v":19},"Medicines","Ondansetron_8 MG / 2 ML_Amp","amp"]
[{"$f":"IF(ISBLANK(B22),\"\",SUBTOTAL(103,$B$3:B22))","v":20},"Medicines","Paracetamol_1000 MG / 100 ML_I.V solution","vial"]
[{"$f":"IF(ISBLANK(B23),\"\",SUBTOTAL(103,$B$3:B23))","v":21},"Medicines","Pethidine_100 MG / 2 ML_Amp","amp"]
[{"$f":"IF(ISBLANK(B24),\"\",SUBTOTAL(103,$B$3:B24))","v":22},"Medicines","Propofol Amp20 MG/ ML","amp"]
[{"$f":"IF(ISBLANK(B25),\"\",SUBTOTAL(103,$B$3:B25))","v":23},"Medicines","Salbutamol_2.5 MG / 2.5 ML_Nebulizer Solution","amp"]
[{"$f":"IF(ISBLANK(B26),\"\",SUBTOTAL(103,$B$3:B26))","v":24},"Medicines","Sodium Chloride_0.9 %_I.V solution","amp"]
[{"$f":"IF(ISBLANK(B27),\"\",SUBTOTAL(103,$B$3:B27))","v":25},"Medicines","Betahistine 16mg","tab"]
[{"$f":"IF(ISBLANK(B28),\"\",SUBTOTAL(103,$B$3:B28))","v":26},"Medicines","Calcium + VIT D3 600 MG+400 IU","tab"]
[{"$f":"IF(ISBLANK(B29),\"\",SUBTOTAL(103,$B$3:B29))","v":27},"Medicines","Captopril 25mg","tab"]
[{"$f":"IF(ISBLANK(B30),\"\",SUBTOTAL(103,$B$3:B30))","v":28},"Medicines","Cefixime 400mg","tab"]
[{"$f":"IF(ISBLANK(B31),\"\",SUBTOTAL(103,$B$3:B31))","v":29},"Medicines","Ciprofloxacin 500mg","tab"]
[{"$f":"IF(ISBLANK(B32),\"\",SUBTOTAL(103,$B$3:B32))","v":30},"Medicines","Clopidogrel 75mg","tab"]
[{"$f":"IF(ISBLANK(B33),\"\",SUBTOTAL(103,$B$3:B33))","v":31},"Medicines","Diclofenac Sodium 50mg","tab"]
[{"$f":"IF(ISBLANK(B34),\"\",SUBTOTAL(103,$B$3:B34))","v":32},"Medicines","Hyoscine - N - Butylbromide+ paracetamol 500/10mg","tab"]
[{"$f":"IF(ISBLANK(B35),\"\",SUBTOTAL(103,$B$3:B35))","v":33},"Medicines","Lansoprazole 30mg","tab"]
[{"$f":"IF(ISBLANK(B36),\"\",SUBTOTAL(103,$B$3:B36))","v":34},"Medicines","Levofloxacin 500mg","tab"]
[{"$f":"IF(ISBLANK(B37),\"\",SUBTOTAL(103,$B$3:B37))","v":35},"Medicines"," des-Loratadine 5mg","tab"]
[{"$f":"IF(ISBLANK(B38),\"\",SUBTOTAL(103,$B$3:B38))","v":36},"Medicines","Losartan + Hydrochlorothiazide 50/12.5mg","tab"]
[{"$f":"IF(ISBLANK(B39),\"\",SUBTOTAL(103,$B$3:B39))","v":37},"Medicines","Metoprolol 50mg","tab"]
[{"$f":"IF(ISBLANK(B40),\"\",SUBTOTAL(103,$B$3:B40))","v":38},"Medicines","Ondansetron 8mg","tab"]
[{"$f":"IF(ISBLANK(B41),\"\",SUBTOTAL(103,$B$3:B41))","v":39},"Medicines","Paracetamol 500mg","tab"]
[{"$f":"IF(ISBLANK(B42),\"\",SUBTOTAL(103,$B$3:B42))","v":40},"Medicines","Sodium Chloride 0.9% 1 liter","bag"]
[{"$f":"IF(ISBLANK(B43),\"\",SUBTOTAL(103,$B$3:B43))","v":41},"Medicines","Dextrose 5%,solution0.5 liter","bag"]
[{"$f":"IF(ISBLANK(B44),\"\",SUBTOTAL(103,$B$3:B44))","v":42},"Medicines","Silvadiazin 1%","tube"]
[{"$f":"IF(ISBLANK(B45),\"\",SUBTOTAL(103,$B$3:B45))","v":43},"Medicines","Oxytocin","amp"]
[{"$f":"IF(ISBLANK(B46),\"\",SUBTOTAL(103,$B$3:B46))","v":44},"Medicines","Ephedrine hydrochloride 30 mg/ml","amp"]
[{"$f":"IF(ISBLANK(B47),\"\",SUBTOTAL(103,$B$3:B47))","v":45},"Medicines","Marcaine spinal 0.5% 5mg/ml","amp"]
[{"$f":"IF(ISBLANK(B48),\"\",SUBTOTAL(103,$B$3:B48))","v":46},"Medicines","Misoprostol 200 mg","tab"]
[{"$f":"IF(ISBLANK(B49),\"\",SUBTOTAL(103,$B$3:B49))","v":47},"Medicines","Vitamin K / phytomenadione 2 mg ","amp"]
[{"$f":"IF(ISBLANK(B50),\"\",SUBTOTAL(103,$B$3:B50))","v":48},"Medicines","Ceftriaxone sodium 1000mg , I.V,I.M injection","flak"]
[{"$f":"IF(ISBLANK(B51),\"\",SUBTOTAL(103,$B$3:B51))","v":49},"Medicines","Ceftriaxone sodium 500mg , I.V,I.M injection","flak"]
[{"$f":"IF(ISBLANK(B52),\"\",SUBTOTAL(103,$B$3:B52))","v":50},"Medicines","Cefotaxime sodium 1000g ","flak"]
[{"$f":"IF(ISBLANK(B53),\"\",SUBTOTAL(103,$B$3:B53))","v":51},"Medicines","epinephrine 1 mg","amp"]
[{"$f":"IF(ISBLANK(B54),\"\",SUBTOTAL(103,$B$3:B54))","v":52},"Medicines","Lidocain 2 %","vial"]
[{"$f":"IF(ISBLANK(B55),\"\",SUBTOTAL(103,$B$3:B55))","v":53},"Medicines","Ondanestron 8 mg/4ml ,I.V,I.M","amp"]
[{"$f":"IF(ISBLANK(B56),\"\",SUBTOTAL(103,$B$3:B56))","v":54},"Medicines","Paracetamol 120","syrup"]
[{"$f":"IF(ISBLANK(B57),\"\",SUBTOTAL(103,$B$3:B57))","v":55},"Medicines","Amoxicillin 825 mg / Clavulanic Acid, 175 mg ","tab"]
[{"$f":"IF(ISBLANK(B58),\"\",SUBTOTAL(103,$B$3:B58))","v":56},"Medicines","Diclofenac sodium 25 mg","Supp"]
[{"$f":"IF(ISBLANK(B59),\"\",SUBTOTAL(103,$B$3:B59))","v":57},"Medicines","Ibuprofen 400","tab"]
[{"$f":"IF(ISBLANK(B60),\"\",SUBTOTAL(103,$B$3:B60))","v":58},"Medicines","Hexamidine ","bottle"]
[{"$f":"IF(ISBLANK(B61),\"\",SUBTOTAL(103,$B$3:B61))","v":59},"Medicines","vitamin D","drop"]
[{"$f":"IF(ISBLANK(B62),\"\",SUBTOTAL(103,$B$3:B62))","v":60},"Medicines","Mefenamic acid 500 mg","tab"]
[{"$f":"IF(ISBLANK(B63),\"\",SUBTOTAL(103,$B$3:B63))","v":61},"Medicines","Amoxicillin 260 mg / Clavulanic Acid, 62mg / ","syrup"]
[{"$f":"IF(ISBLANK(B64),\"\",SUBTOTAL(103,$B$3:B64))","v":62},"Medicines","Amoxicillin 250 mg ","syrup"]
[{"$f":"IF(ISBLANK(B65),\"\",SUBTOTAL(103,$B$3:B65))","v":63},"Medicines","Zinc","syrup"]
[{"$f":"IF(ISBLANK(B66),\"\",SUBTOTAL(103,$B$3:B66))","v":64},"Medicines","Ibuprofen 100","syrup"]
[{"$f":"IF(ISBLANK(B67),\"\",SUBTOTAL(103,$B$3:B67))","v":65},"Medicines","Metronidazole 500","tab"]
[{"$f":"IF(ISBLANK(B68),\"\",SUBTOTAL(103,$B$3:B68))","v":66},"Medicines","levonorgestrel ethinylestradiol 30","tab"]
[{"$f":"IF(ISBLANK(B69),\"\",SUBTOTAL(103,$B$3:B69))","v":67},"Medicines","glycerin","Supp"]
[{"$f":"IF(ISBLANK(B70),\"\",SUBTOTAL(103,$B$3:B70))","v":68},"Medicines","Amoxicillin 500","tab"]
[{"$f":"IF(ISBLANK(B71),\"\",SUBTOTAL(103,$B$3:B71))","v":69},"Medicines","Cefixime 200","tab"]
[{"$f":"IF(ISBLANK(B72),\"\",SUBTOTAL(103,$B$3:B72))","v":70},"Medicines","C  Serum","bottle"]
[{"$f":"IF(ISBLANK(B73),\"\",SUBTOTAL(103,$B$3:B73))","v":71},"Medicines","Folic Acid","tab"]
[{"$f":"IF(ISBLANK(B74),\"\",SUBTOTAL(103,$B$3:B74))","v":72},"Medicines","Metronidazole + Miconazole Nitrate","Supp"]
[{"$f":"IF(ISBLANK(B75),\"\",SUBTOTAL(103,$B$3:B75))","v":73},"Medicines","Omprazole 20mg","tab"]
[{"$f":"IF(ISBLANK(B76),\"\",SUBTOTAL(103,$B$3:B76))","v":74},"Medicines","Clotrimazole 1 % cream","tube"]
[{"$f":"IF(ISBLANK(B77),\"\",SUBTOTAL(103,$B$3:B77))","v":75},"Medicines","Recsil ","Supp"]
[{"$f":"IF(ISBLANK(B78),\"\",SUBTOTAL(103,$B$3:B78))","v":76},"Medicines","Azitromycin","syrup"]
[{"$f":"IF(ISBLANK(B79),\"\",SUBTOTAL(103,$B$3:B79))","v":77},"Medicines","Acetylsalicylic Acid (Aspirin), 75 mg, Gastro-Resistant Tab.","Tablet"]
[{"$f":"IF(ISBLANK(B80),\"\",SUBTOTAL(103,$B$3:B80))","v":78},"Medicines","Amlodipine 5mg","Tablet"]
[{"$f":"IF(ISBLANK(B81),\"\",SUBTOTAL(103,$B$3:B81))","v":79},"Medicines","Amoxicillin 400mg / Clavulanic Acid, 57 mg / 5ml, Powder Oral Susp 70ml","Oral Suspension"]
[{"$f":"IF(ISBLANK(B82),\"\",SUBTOTAL(103,$B$3:B82))","v":80},"Medicines","Atorvastatin 40mg","Tablet"]
[{"$f":"IF(ISBLANK(B83),\"\",SUBTOTAL(103,$B$3:B83))","v":81},"Medicines","Azithromycin 500mg","Tablet"]
[{"$f":"IF(ISBLANK(B84),\"\",SUBTOTAL(103,$B$3:B84))","v":82},"Medicines","Benzyl Benzoate, 25%, Lotion, 100 ml","Bottle"]
[{"$f":"IF(ISBLANK(B85),\"\",SUBTOTAL(103,$B$3:B85))","v":83},"Medicines","Bisoprolol Fumarate, 10 mg, Break.Tab.","Tablet"]
[{"$f":"IF(ISBLANK(B86),\"\",SUBTOTAL(103,$B$3:B86))","v":84},"Medicines","Cefixime, 100mg/5ml, Powder For Oral Susp., 60 Ml, Bot.","Bottle"]
[{"$f":"IF(ISBLANK(B87),\"\",SUBTOTAL(103,$B$3:B87))","v":85},"Medicines","Clotrimazole, 500 mg, Vaginal Tab. + Applicator","Ovuol"]
[{"$f":"IF(ISBLANK(B88),\"\",SUBTOTAL(103,$B$3:B88))","v":86},"Medicines","Ferrous Salt Eq. 60 mg Iron / Folic Acid 0.4 mg, Tab","Tablet"]
[{"$f":"IF(ISBLANK(B89),\"\",SUBTOTAL(103,$B$3:B89))","v":87},"Medicines","Ferrous Salt, Eq. Iron 45mg/5ml, Syrup, 200ml, Bot.","Bottle"]
[{"$f":"IF(ISBLANK(B90),\"\",SUBTOTAL(103,$B$3:B90))","v":88},"Medicines","Furosemide, 40 mg, Tab.","Tablet"]
[{"$f":"IF(ISBLANK(B91),\"\",SUBTOTAL(103,$B$3:B91))","v":89},"Medicines","Hydrocortisone 1% Cream, Topical 20mg","Cream"]
[{"$f":"IF(ISBLANK(B92),\"\",SUBTOTAL(103,$B$3:B92))","v":90},"Medicines","Loratadine, 10mg, Tab.","Tablet"]
[{"$f":"IF(ISBLANK(B93),\"\",SUBTOTAL(103,$B$3:B93))","v":91},"Medicines","Metformin Hcl 850mg","Tablet"]
[{"$f":"IF(ISBLANK(B94),\"\",SUBTOTAL(103,$B$3:B94))","v":92},"Medicines","Metronidazole 125mg/5ml Syrup","Bottle"]
[{"$f":"IF(ISBLANK(B95),\"\",SUBTOTAL(103,$B$3:B95))","v":93},"Medicines","Miconazole Nitrate, 2%, Cream, 30 G, Tube","Tube"]
[{"$f":"IF(ISBLANK(B96),\"\",SUBTOTAL(103,$B$3:B96))","v":94},"Medicines","Nystatin, 100,000 Iu/Ml, Oral Susp. + Graduated Dropper","Oral Suspension"]
[{"$f":"IF(ISBLANK(B97),\"\",SUBTOTAL(103,$B$3:B97))","v":95},"Medicines","Omeprazole, 40 mg","Capsule"]
[{"$f":"IF(ISBLANK(B98),\"\",SUBTOTAL(103,$B$3:B98))","v":96},"Medicines","Prednisolone 5mg","Tablet"]
[{"$f":"IF(ISBLANK(B99),\"\",SUBTOTAL(103,$B$3:B99))","v":97},"Medicines","Salbutamol 2mg -100mcg/Ml 200 Doses Spray","Inhaler"]
[{"$f":"IF(ISBLANK(B100),\"\",SUBTOTAL(103,$B$3:B100))","v":98},"Medicines","Valproate Sodium, 200 mg, Gastro-Resistant Tab.","Tablet"]
[{"$f":"IF(ISBLANK(B101),\"\",SUBTOTAL(103,$B$3:B101))","v":99},"Medicines","Valproate Sodium, 200 mg/Ml, 40 Ml, Bot. + Syringe","Bottle"]
[{"$f":"IF(ISBLANK(B102),\"\",SUBTOTAL(103,$B$3:B102))","v":100},"Medicines","Glebenglamid 5 mg","Tablet"]
[{"$f":"IF(ISBLANK(B103),\"\",SUBTOTAL(103,$B$3:B103))","v":101},"Medicines","Valproate Sodium, 500 mg, Gastro-Resistant Tab.","Tablet"]
[{"$f":"IF(ISBLANK(B104),\"\",SUBTOTAL(103,$B$3:B104))","v":102},"Medical consumables","Alcohol_96 %_Solution","bott"]
[{"$f":"IF(ISBLANK(B105),\"\",SUBTOTAL(103,$B$3:B105))","v":103},"Medical consumables","Blood Transfusion__Set","pcs"]
[{"$f":"IF(ISBLANK(B106),\"\",SUBTOTAL(103,$B$3:B224))","v":222},"Medical consumables","Drape Surgical_150 × 240 CM_Disposable Sterile","pcs"]
[{"$f":"IF(ISBLANK(B107),\"\",SUBTOTAL(103,$B$3:B107))","v":105},"Medical consumables","Drape Surgical_75 × 90 CM_Disposable Sterile","pcs"]
[{"$f":"IF(ISBLANK(B108),\"\",SUBTOTAL(103,$B$3:B108))","v":106},"Medical consumables","Drape Surgical_90 × 150 CM_Disposable Sterile","pcs"]
[{"$f":"IF(ISBLANK(B109),\"\",SUBTOTAL(103,$B$3:B109))","v":107},"Medical consumables","ECG Electrode__","pcs"]
[{"$f":"IF(ISBLANK(B110),\"\",SUBTOTAL(103,$B$3:B110))","v":108},"Medical consumables","Folly Catheter_CH 16_","pcs"]
[{"$f":"IF(ISBLANK(B111),\"\",SUBTOTAL(103,$B$3:B111))","v":109},"Medical consumables","Folly Catheter_CH 18_","pcs"]
[{"$f":"IF(ISBLANK(B112),\"\",SUBTOTAL(103,$B$3:B112))","v":110},"Medical consumables","Gauze Swabs_10 × 10 CM_or 7.5*7.5Non-Sterile","kg"]
[{"$f":"IF(ISBLANK(B113),\"\",SUBTOTAL(103,$B$3:B113))","v":111},"Medical consumables","Gloves Examination_Large_Latex Non Sterile","pcs"]
[{"$f":"IF(ISBLANK(B114),\"\",SUBTOTAL(103,$B$3:B114))","v":112},"Medical consumables","Gloves Examination_Medium_Latex Non Sterile","pcs"]
[{"$f":"IF(ISBLANK(B115),\"\",SUBTOTAL(103,$B$3:B115))","v":113},"Medical consumables","Gloves Surgical_Size 7.5_Sterile","pcs"]
[{"$f":"IF(ISBLANK(B116),\"\",SUBTOTAL(103,$B$3:B116))","v":114},"Medical consumables","Glutaraldehyde_2 %_Solution","bott"]
[{"$f":"IF(ISBLANK(B117),\"\",SUBTOTAL(103,$B$3:B117))","v":115},"Medical consumables","Gown Surgical_Size L_Disposable Sterile","pcs"]
[{"$f":"IF(ISBLANK(B118),\"\",SUBTOTAL(103,$B$3:B118))","v":116},"Medical consumables","Gown Surgical_Size XL_Disposable Sterile","pcs"]
[{"$f":"IF(ISBLANK(B119),\"\",SUBTOTAL(103,$B$3:B119))","v":117},"Medical consumables","Gown Surgical_Size XXL_Disposable Sterile","pcs"]
[{"$f":"IF(ISBLANK(B120),\"\",SUBTOTAL(103,$B$3:B120))","v":118},"Medical consumables","Iv Cannula_G 20_","pcs"]
[{"$f":"IF(ISBLANK(B121),\"\",SUBTOTAL(103,$B$3:B121))","v":119},"Medical consumables","Iv Cannula_G 22_","pcs"]
[{"$f":"IF(ISBLANK(B122),\"\",SUBTOTAL(103,$B$3:B122))","v":120},"Medical consumables","Iv Infusion__Set","pcs"]
[{"$f":"IF(ISBLANK(B123),\"\",SUBTOTAL(103,$B$3:B123))","v":121},"Medical consumables","Mask Nebulizer_Adult_","pcs"]
[{"$f":"IF(ISBLANK(B124),\"\",SUBTOTAL(103,$B$3:B124))","v":122},"Medical consumables","Nelaton Catheter_CH 12_","pcs"]
[{"$f":"IF(ISBLANK(B125),\"\",SUBTOTAL(103,$B$3:B125))","v":123},"Medical consumables","Nelaton Catheter_CH 8_","pcs"]
[{"$f":"IF(ISBLANK(B126),\"\",SUBTOTAL(103,$B$3:B126))","v":124},"Medical consumables","Paper ECG_8 Cm × 20 M_Roll","pcs"]
[{"$f":"IF(ISBLANK(B127),\"\",SUBTOTAL(103,$B$3:B127))","v":125},"Medical consumables","Plaster Mefix_10 CM × 10 M_Roll","pcs"]
[{"$f":"IF(ISBLANK(B128),\"\",SUBTOTAL(103,$B$3:B128))","v":126},"Medical consumables","Povidone_Iodine Solution 10 %_","pcs"]
[{"$f":"IF(ISBLANK(B129),\"\",SUBTOTAL(103,$B$3:B129))","v":127},"Medical consumables","Surgical Blades Scalple_Sizes 11_Disposable Sterile","pcs"]
[{"$f":"IF(ISBLANK(B130),\"\",SUBTOTAL(103,$B$3:B130))","v":128},"Medical consumables","Surgical Blades Scalple_Sizes 15_Disposable Sterile","pcs"]
[{"$f":"IF(ISBLANK(B131),\"\",SUBTOTAL(103,$B$3:B131))","v":129},"Medical consumables","Surgical Blades Scalple_Sizes 22_Disposable Sterile","pcs"]
[{"$f":"IF(ISBLANK(B132),\"\",SUBTOTAL(103,$B$3:B132))","v":130},"Medical consumables","Surgical Blades Scalple_Sizes 24_Disposable Sterile","pcs"]
[{"$f":"IF(ISBLANK(B133),\"\",SUBTOTAL(103,$B$3:B133))","v":131},"Medical consumables","Surgical polypropylene Suture_2/0_Needle Cutting","pcs"]
[{"$f":"IF(ISBLANK(B134),\"\",SUBTOTAL(103,$B$3:B134))","v":132},"Medical consumables","Surgical polypropylene Suture_3/0_Needle Cutting","pcs"]
[{"$f":"IF(ISBLANK(B135),\"\",SUBTOTAL(103,$B$3:B135))","v":133},"Medical consumables","Surgical polypropylene Suture_2/0_Needle Round","pcs"]
[{"$f":"IF(ISBLANK(B136),\"\",SUBTOTAL(103,$B$3:B136))","v":134},"Medical consumables","Surgical polypropylene Suture_4/0_Needle Cutting","pcs"]
[{"$f":"IF(ISBLANK(B137),\"\",SUBTOTAL(103,$B$3:B137))","v":135},"Medical consumables","Surgical polypropylene Suture_4/0_Needle Round","pcs"]
[{"$f":"IF(ISBLANK(B138),\"\",SUBTOTAL(103,$B$3:B138))","v":136},"Medical consumables","Surgical polypropylene Suture_5/0_Needle Cutting","pcs"]
[{"$f":"IF(ISBLANK(B139),\"\",SUBTOTAL(103,$B$3:B139))","v":137},"Medical consumables","Surgical Vicryl Suture_0_Needle Round","pcs"]
[{"$f":"IF(ISBLANK(B140),\"\",SUBTOTAL(103,$B$3:B140))","v":138},"Medical consumables","Surgical Vicryl Suture_1_Needle Round","pcs"]
[{"$f":"IF(ISBLANK(B141),\"\",SUBTOTAL(103,$B$3:B141))","v":139},"Medical consumables","Surgical Vicryl Suture_2/0_Needle Round","pcs"]
[{"$f":"IF(ISBLANK(B142),\"\",SUBTOTAL(103,$B$3:B142))","v":140},"Medical consumables","Surgical Vicryl Suture_2_Needle Round","pcs"]
[{"$f":"IF(ISBLANK(B143),\"\",SUBTOTAL(103,$B$3:B143))","v":141},"Medical consumables","Surgical Vicryl Suture_3/0_Needle Round","pcs"]
[{"$f":"IF(ISBLANK(B144),\"\",SUBTOTAL(103,$B$3:B144))","v":142},"Medical consumables","Surgical Vicryl Suture_2/0_Needle Round","pcs"]
[{"$f":"IF(ISBLANK(B145),\"\",SUBTOTAL(103,$B$3:B145))","v":143},"Medical consumables","Syringe_10 ML_","pcs"]
[{"$f":"IF(ISBLANK(B146),\"\",SUBTOTAL(103,$B$3:B146))","v":144},"Medical consumables","Syringe_3 ML_","pcs"]
[{"$f":"IF(ISBLANK(B147),\"\",SUBTOTAL(103,$B$3:B147))","v":145},"Medical consumables","Syringe_5 ML_","pcs"]
[{"$f":"IF(ISBLANK(B148),\"\",SUBTOTAL(103,$B$3:B148))","v":146},"Medical consumables","Syringe_50 ML_Feeding","pcs"]
[{"$f":"IF(ISBLANK(B149),\"\",SUBTOTAL(103,$B$3:B149))","v":147},"Medical consumables","Tube Endotracheal_Size 4.5_With Cuff","pcs"]
[{"$f":"IF(ISBLANK(B150),\"\",SUBTOTAL(103,$B$3:B150))","v":148},"Medical consumables","Tube Endotracheal_Size 4_With Cuff","pcs"]
[{"$f":"IF(ISBLANK(B151),\"\",SUBTOTAL(103,$B$3:B151))","v":149},"Medical consumables","Tube Endotracheal_Size 5.5_With Cuff","pcs"]
[{"$f":"IF(ISBLANK(B152),\"\",SUBTOTAL(103,$B$3:B152))","v":150},"Medical consumables","Tube Endotracheal_Size 5_With Cuff","pcs"]
[{"$f":"IF(ISBLANK(B153),\"\",SUBTOTAL(103,$B$3:B153))","v":151},"Medical consumables","Tube Endotracheal_Size 6_With Cuff","pcs"]
[{"$f":"IF(ISBLANK(B154),\"\",SUBTOTAL(103,$B$3:B154))","v":152},"Medical consumables","Tube Endotracheal_Size 6.5_With Cuff","pcs"]
[{"$f":"IF(ISBLANK(B155),\"\",SUBTOTAL(103,$B$3:B155))","v":153},"Medical consumables","Tube Endotracheal_Size 7.5_With Cuff","pcs"]
[{"$f":"IF(ISBLANK(B156),\"\",SUBTOTAL(103,$B$3:B156))","v":154},"Medical consumables","Tube Endotracheal_Size 7_With Cuff","pcs"]
[{"$f":"IF(ISBLANK(B157),\"\",SUBTOTAL(103,$B$3:B157))","v":155},"Medical consumables","Ultrasound__Gel","pcs"]
[{"$f":"IF(ISBLANK(B158),\"\",SUBTOTAL(103,$B$3:B158))","v":156},"Medical consumables","Urine Bag_2000 ML_","pcs"]
[{"$f":"IF(ISBLANK(B159),\"\",SUBTOTAL(103,$B$3:B159))","v":157},"Medical consumables","Compression bandage","Piece"]
[{"$f":"IF(ISBLANK(B160),\"\",SUBTOTAL(103,$B$3:B160))","v":158},"Medical consumables"," Gauze  bandage ","Piece"]
[{"$f":"IF(ISBLANK(B161),\"\",SUBTOTAL(103,$B$3:B161))","v":159},"Medical consumables","Micro drip set","Piece"]
[{"$f":"IF(ISBLANK(B162),\"\",SUBTOTAL(103,$B$3:B162))","v":160},"Medical consumables","Nylon sutures 2","Box"]
[{"$f":"IF(ISBLANK(B163),\"\",SUBTOTAL(103,$B$3:B163))","v":161},"Medical consumables","Chromic surtures 1","Box"]
[{"$f":"IF(ISBLANK(B164),\"\",SUBTOTAL(103,$B$3:B164))","v":162},"Medical consumables","Iv Cannula_G 24_","pcs"]
[{"$f":"IF(ISBLANK(B165),\"\",SUBTOTAL(103,$B$3:B165))","v":163},"Medical consumables","Needle for lumbar puncture","pcs"]
[{"$f":"IF(ISBLANK(B166),\"\",SUBTOTAL(103,$B$3:B166))","v":164},"Medical consumables","Tongue depressor 100Pcs","Box"]
[{"$f":"IF(ISBLANK(B167),\"\",SUBTOTAL(103,$B$3:B167))","v":165},"Medical consumables","Nylon Gloves","Box"]
[{"$f":"IF(ISBLANK(B168),\"\",SUBTOTAL(103,$B$3:B168))","v":166},"Medical consumables"," Disposable Syringe 10 ml,sterile ","pcs"]
[{"$f":"IF(ISBLANK(B169),\"\",SUBTOTAL(103,$B$3:B169))","v":167},"lab consumables","ABX Miniclean__Solution","ml"]
[{"$f":"IF(ISBLANK(B170),\"\",SUBTOTAL(103,$B$3:B170))","v":168},"lab consumables","ABX Minidil LMG__Solution","ml"]
[{"$f":"IF(ISBLANK(B171),\"\",SUBTOTAL(103,$B$3:B171))","v":169},"lab consumables","ABX Minilisse LMG__Solution","ml"]
[{"$f":"IF(ISBLANK(B172),\"\",SUBTOTAL(103,$B$3:B172))","v":170},"lab consumables","Glucose Reagent__Solution","ml"]
[{"$f":"IF(ISBLANK(B173),\"\",SUBTOTAL(103,$B$3:B173))","v":171},"lab consumables","Urea Reagent__Solution","ml"]
[{"$f":"IF(ISBLANK(B174),\"\",SUBTOTAL(103,$B$3:B174))","v":172},"lab consumables","ALT (SGPT) Reagent__Solution","ml"]
[{"$f":"IF(ISBLANK(B175),\"\",SUBTOTAL(103,$B$3:B175))","v":173},"lab consumables","Uric Acid Reagent__Solution","ml"]
[{"$f":"IF(ISBLANK(B176),\"\",SUBTOTAL(103,$B$3:B176))","v":174},"lab consumables","Blue Micropipette Tips__Plastic","pices"]
[{"$f":"IF(ISBLANK(B177),\"\",SUBTOTAL(103,$B$3:B177))","v":175},"lab consumables","CK - MB Reagent__Solution","ml"]
[{"$f":"IF(ISBLANK(B178),\"\",SUBTOTAL(103,$B$3:B178))","v":176},"lab consumables","Creatinine Reagent__Solution","ml"]
[{"$f":"IF(ISBLANK(B179),\"\",SUBTOTAL(103,$B$3:B179))","v":177},"lab consumables","Protein (Urin - CSF) Reagent__Solution","ml"]
[{"$f":"IF(ISBLANK(B180),\"\",SUBTOTAL(103,$B$3:B180))","v":178},"lab consumables","Plastic Urine Collection Box 100 ML__Box","pices"]
[{"$f":"IF(ISBLANK(B181),\"\",SUBTOTAL(103,$B$3:B181))","v":179},"lab consumables","anti A","ml"]
[{"$f":"IF(ISBLANK(B182),\"\",SUBTOTAL(103,$B$3:B182))","v":180},"lab consumables","anti B","ml"]
[{"$f":"IF(ISBLANK(B183),\"\",SUBTOTAL(103,$B$3:B183))","v":181},"lab consumables","anti R","ml"]
[{"$f":"IF(ISBLANK(B184),\"\",SUBTOTAL(103,$B$3:B184))","v":182},"lab consumables"," Plastic Tubes urian Dry 10 ML__Tube","pices"]
[{"$f":"IF(ISBLANK(B185),\"\",SUBTOTAL(103,$B$3:B185))","v":183},"lab consumables","Crystal Plastic Tubes Dry 5 ML__Tube","pices"]
[{"$f":"IF(ISBLANK(B186),\"\",SUBTOTAL(103,$B$3:B224))","v":222},"lab consumables","Hepatitis B Test__Strip","pices"]
[{"$f":"IF(ISBLANK(B187),\"\",SUBTOTAL(103,$B$3:B187))","v":185},"lab consumables","Hepatitis C Test__Strip","pices"]
[{"$f":"IF(ISBLANK(B188),\"\",SUBTOTAL(103,$B$3:B188))","v":186},"lab consumables","Microscope Blank Glass Slides 76.2*25.4 mm__Slide","pices"]
[{"$f":"IF(ISBLANK(B189),\"\",SUBTOTAL(103,$B$3:B189))","v":187},"lab consumables","Microscope Cover Glass 22*22 mm__Slide","pices"]
[{"$f":"IF(ISBLANK(B190),\"\",SUBTOTAL(103,$B$3:B190))","v":188},"lab consumables","Bllood bag 500ml","pices"]
[{"$f":"IF(ISBLANK(B191),\"\",SUBTOTAL(103,$B$3:B191))","v":189},"lab consumables","Tube Citrate Sodium__Tube","pices"]
[{"$f":"IF(ISBLANK(B192),\"\",SUBTOTAL(103,$B$3:B192))","v":190},"lab consumables","Tube EDTA__Tube","pices"]
[{"$f":"IF(ISBLANK(B193),\"\",SUBTOTAL(103,$B$3:B193))","v":191},"lab consumables","PT Reagent","ML"]
[{"$f":"IF(ISBLANK(B194),\"\",SUBTOTAL(103,$B$3:B194))","v":192},"lab consumables","Anti Human Globulin Gel__Card","pices"]
[{"$f":"IF(ISBLANK(B195),\"\",SUBTOTAL(103,$B$3:B195))","v":193},"lab consumables","Tube PT covit__Tube","pices"]
[{"$f":"IF(ISBLANK(B196),\"\",SUBTOTAL(103,$B$3:B196))","v":194},"lab consumables","Tube Heparin__Tube","pices"]
[{"$f":"IF(ISBLANK(B197),\"\",SUBTOTAL(103,$B$3:B197))","v":195},"lab consumables","Yellow Micropipette Tips__Plastic","pices"]
[{"$f":"IF(ISBLANK(B198),\"\",SUBTOTAL(103,$B$3:B198))","v":196},"lab consumables","Amylase Reagent__Solution","ml"]
[{"$f":"IF(ISBLANK(B199),\"\",SUBTOTAL(103,$B$3:B199))","v":197},"lab consumables","Bilirubin Total and Direct Reagent__Solution","ml"]
[{"$f":"IF(ISBLANK(B200),\"\",SUBTOTAL(103,$B$3:B200))","v":198},"lab consumables","HAV Test__Strip","pices"]
[{"$f":"IF(ISBLANK(B201),\"\",SUBTOTAL(103,$B$3:B201))","v":199},"lab consumables","HIV Test__Strip","pices"]
[{"$f":"IF(ISBLANK(B202),\"\",SUBTOTAL(103,$B$3:B202))","v":200},"lab consumables","LDH Reagent__Solution","ml"]
[{"$f":"IF(ISBLANK(B203),\"\",SUBTOTAL(103,$B$3:B203))","v":201},"lab consumables","Troponin Test__Strip","pices"]
[{"$f":"IF(ISBLANK(B204),\"\",SUBTOTAL(103,$B$3:B204))","v":202},"lab consumables","CRP","ml"]
[{"$f":"IF(ISBLANK(B205),\"\",SUBTOTAL(103,$B$3:B205))","v":203},"lab consumables","ASLO Active Reagent__Solution","ml"]
[{"$f":"IF(ISBLANK(B206),\"\",SUBTOTAL(103,$B$3:B206))","v":204},"lab consumables","Hematocrit Capillary Tubes Blue__Tube","pices"]
[{"$f":"IF(ISBLANK(B207),\"\",SUBTOTAL(103,$B$3:B207))","v":205},"lab consumables","Hematocrit Capillary Tubes RED__Tube","pices"]
[{"$f":"IF(ISBLANK(B208),\"\",SUBTOTAL(103,$B$3:B208))","v":206},"lab consumables","widal Reagent__Solution","kit"]
[{"$f":"IF(ISBLANK(B209),\"\",SUBTOTAL(103,$B$3:B209))","v":207},"lab consumables","right  Reagent__Solution","kit"]
[{"$f":"IF(ISBLANK(B210),\"\",SUBTOTAL(103,$B$3:B210))","v":208},"lab consumables","tupe for pt dives (covet)","pices"]
[{"$f":"IF(ISBLANK(B211),\"\",SUBTOTAL(103,$B$3:B211))","v":209},"lab consumables","calpration for cornely aft 500 (جهاز شوارد","kit"]
[{"$f":"IF(ISBLANK(B212),\"\",SUBTOTAL(103,$B$3:B212))","v":210},"lab consumables","calpration for for idan I15 (جهاز غازات دم","kit"]
[{"$f":"IF(ISBLANK(B213),\"\",SUBTOTAL(103,$B$3:B213))","v":211},"lab consumables","Streeptes idan I15 (جهاز غازات دم","kit"]
[{"$f":"IF(ISBLANK(B214),\"\",SUBTOTAL(103,$B$3:B214))","v":212},"lab consumables","urine collection bags","bag"]
[{"$f":"IF(ISBLANK(B215),\"\",SUBTOTAL(103,$B$3:B215))","v":213},"lab consumables","urine tape","box"]
[{"$f":"IF(ISBLANK(B216),\"\",SUBTOTAL(103,$B$3:B216))","v":214},"lab consumables","chemical work tubes 5 ml","tube"]
[{"$f":"IF(ISBLANK(B217),\"\",SUBTOTAL(103,$B$3:B217))","v":215},"lab consumables","conical urine tube","tube"]
[{"$f":"IF(ISBLANK(B218),\"\",SUBTOTAL(103,$B$3:B218))","v":216},"lab consumables","CRP kit 50 ml biosystem","kit"]
[{"$f":"IF(ISBLANK(B219),\"\",SUBTOTAL(103,$B$3:B219))","v":217},"lab consumables","BSA","box"]
[{"$f":"IF(ISBLANK(B220),\"\",SUBTOTAL(103,$B$3:B220))","v":218},"lab consumables","Distilled water","bottle"]
[{"$f":"IF(ISBLANK(B221),\"\",SUBTOTAL(103,$B$3:B221))","v":219},"lab consumables","bloody group","group"]
[{"$f":"IF(ISBLANK(B222),\"\",SUBTOTAL(103,$B$3:B222))","v":220},"lab consumables"," HBsAg rabid test","Piece"]
[{"$f":"IF(ISBLANK(B223),\"\",SUBTOTAL(103,$B$3:B223))","v":221},"lab consumables","HCV rabid test","Piece"]
[{"$f":"IF(ISBLANK(B224),\"\",SUBTOTAL(103,$B$3:B224))","v":222},"lab consumables","pregnant rabid test","Piece"]
[null,null,"Total"]
[]
[]
[]
[]
["Supplier Name | اسم المزود"]
["Supplier & Signature | توقيع وختم المزود"]